Workbook

Sheet Fonds_tax
BD1: =+COLUMN() -> 56 | CH1: =+COLUMN() -> 86
A2: Aktiemarkedets afkast og risiko (OECD) | B2: Aktier Index niveau | C2: Tryk F9 for at beregne ny afkastudvikling | E2: #Kvartal | F2: Dato | G2: =+B19 -> XACT C25 | J2: =+C19 -> Sparindex C25 | N2: #Kvartal | O2: Dato | P2: Fond 1 : Udbyttedynamik | W2: Depotværdi - Aktiver | Z2: Skat - Passiver | AE2: =+G2 -> XACT C25 | AJ2: Fond 2 : Udbyttedynamik | AQ2: Depotværdi - Aktiver | AT2: Skat - Passiver | AX2: =+J2 -> Sparindex C25
A3: Forventet markedsafkast p.a. | B3: 0.06 | G3: Markedsafkast q/q | H3: ÅOP | I3: Net afkast q/q | J3: =+G3 -> Markedsafkast q/q | K3: =+H3 -> ÅOP | L3: Net afkast q/q | P3: NAV | Q3: NAV afkast | R3: Udbytte | S3: Acconto Udbytte | T3: Cash udbytte | U3: NAV (adj) | W3: Investering | X3: Reinvestering | Y3: Total | Z3: Investering | AA3: Reinvestings ureali | AB3: Udbytte | AC3: Total | AE3: Formue efter skat | AF3: Formue før skat | AH3: =+N2 -> #Kvartal | AI3: =+O2 -> Dato | AJ3: NAV | AK3: NAV afkast | AL3: Udbytte | AM3: Acconto Udb | AN3: Cash udbytte | AO3: NAV (adj) | AQ3: Investering | AR3: Reinvestering | AS3: Total | AT3: Investering | AU3: Udbytte | AV3: Total | AX3: Formue efter skat | AY3: Formue før skat
A4: Logmean p.a. | B4: =+logmoments(1,B3,B6,365) -> 0.04700479219 | E4: 0 | F4: 2020-12-30 | G4: 0 | H4: 0 | I4: 0 | J4: =+G4 -> 0 | K4: 0 | L4: 0 | N4: 0 | O4: 2020-12-30 | P4: =+$B$11 -> 100 | Q4: 0 | R4: 0 | S4: 0 | T4: 0 | U4: =+P4 -> 100 | W4: =+P4 -> 100 | X4: 0 | Y4: =+X4+W4 -> 100 | Z4: 0 | AA4: 0 | AB4: 0 | AC4: 0 | AE4: =+P4 -> 100 | AF4: =+AE4 -> 100 | AH4: =+N4 -> 0 | AI4: =+O4 -> 2020-12-30 | AJ4: =+$B$11 -> 100 | AK4: 0 | AL4: 0 | AM4: 0 | AN4: 0 | AO4: =+AJ4 -> 100 | AQ4: =+AJ4 -> 100 | AR4: 0 | AS4: =+AQ4+AR4 -> 100 | AT4: 0 | AU4: 0 | AV4: 0 | AX4: =+AS4-AV4 -> 100 | AY4: =+AO4 -> 100
A5: Logmean m/m | B5: =+logmoments(1,B3,B6,365/4) -> 0.0114687328 | E5: 1 | F5: =+EDATE(F4,3) -> 2021-03-30 | G5: =+$B$20*((EXP(_xlfn.NORM.INV(RAND(),$B$4*0.25,$B$7*SQRT(0.25)))-1)) -> -0.01985602247 | H5: =+(1+$B$23)^(1/4)-1 -> 0.0004996254369 | I5: =+(1+G5)/(1+H5)-1 -> -0.02034548279 | J5: =+($C$20/$B$20)*G5 -> -0.01985602247 | K5: =+(1+$C$23)^(1/4)-1 -> 0.0008738539016 | L5: =+(1+J5)/(1+K5)-1 -> -0.02071177731 | N5: 1 | O5: =+EDATE(O4,3) -> 2021-03-30 | P5: =+(P4)*(1+I5)-R5 -> 97.96545172 | Q5: =+P5/P4-1 -> -0.02034548279 | R5: =+Udbytte_lagerfond(O5,$B$21,$B$22,+INDEX(P$4:$P5,MAX(ROW(O5)-3-4/$C$21,1),1),P4*(1+I5),$B$14,$B$15,1) -> 0 | S5: =+R5*$B$24 -> 0 | T5: =+R5-S5 -> 0 | U5: =+U4*(1+I5) -> 97.96545172 | W5: 97.96545172 | X5: =+T5+X4*P5/P4 -> 0 | Y5: =+W5+X5 -> 97.96545172 | Z5: =+IF((W5-$W$4)>0,$B$14*(W5-$W$4),(W5-$W$4)*($B$15)) -> -0.5493280353 | AA5: =+IF(X5-SUM($T$5:T5)>0,(X5-SUM($T$5:T5))*$B$14,(X5-SUM($T$5:T5))*$B$15) -> 0 | AB5: =+udbytte_lager_skat_sats($B$25,$B$24,$B$14,$C$24,$B$26)*R5 -> 0 | AC5: =+SUM(Z5:AB5) -> -0.5493280353 | AE5: =+Y5-AC5 -> 98.51477976 | AF5: =+U5 -> 97.96545172 | AH5: 1 | AI5: 2021-03-30 | AJ5: =+(AJ4)*(1+L5)-AL5 -> 97.92882227 | AK5: =+AJ5/AJ4-1 -> -0.02071177731 | AL5: =+Udbytte_fra_fond(AI5,$C$21,$C$22,+INDEX($AJ$4:AJ5,MAX(ROW(O5)-3-4/$C$21,1),1),AJ4*(1+L5),1) -> 0 | AM5: =+AL5*$C$24 -> 0 | AN5: =+AL5-AM5 -> 0 | AO5: =+AO4*(1+L5) -> 97.92882227 | AQ5: 97.92882227 | AR5: =+AN5+AR4*AJ5/AJ4 -> 0 | AS5: =+AR5+AQ5 -> 97.92882227 | AT5: =+(AQ5-$AQ$4)*$B$13 -> -0.5592179873 | AU5: =+SUM($AL$5:AL5)*($B$13-$C$24)+(AR5-SUM($AN$5:AN5))*($B$13) -> 0 | AV5: =+AU5+AT5 -> -0.5592179873 | AX5: 98.48804026 | AY5: 97.92882227
A6: Volatilitet p.a. (Risiko p.a.) | B6: 0.16 | E6: =1+E5 -> 2 | F6: =+EDATE(F5,3) -> 2021-06-30 | G6: =+$B$20*((EXP(_xlfn.NORM.INV(RAND(),$B$4*0.25,$B$7*SQRT(0.25)))-1)) -> 0.1320835724 | H6: =+(1+$B$23)^(1/4)-1 -> 0.0004996254369 | I6: 0.1315182371 | J6: =+($C$20/$B$20)*G6 -> 0.1320835724 | K6: =+(1+$C$23)^(1/4)-1 -> 0.0008738539016 | L6: 0.1310951604 | N6: =1+N5 -> 2 | O6: =+EDATE(O5,3) -> 2021-06-30 | P6: 110.8496952 | Q6: 0.1315182371 | R6: =+Udbytte_lagerfond(O6,$B$21,$B$22,+INDEX(P$4:$P6,MAX(ROW(O6)-3-4/$C$21,1),1),P5*(1+I6),$B$14,$B$15,1) -> 0 | S6: 0 | T6: 0 | U6: 110.8496952 | W6: 110.8496952 | X6: 0 | Y6: =+X6+W6 -> 110.8496952 | Z6: =+IF((W6-$W$4)>0,$B$14*(W6-$W$4),(W6-$W$4)*($B$15)) -> 2.929417711 | AA6: =+IF(X6-SUM($T$5:T6)>0,(X6-SUM($T$5:T6))*$B$14,(X6-SUM($T$5:T6))*$B$15) -> 0 | AB6: =+udbytte_lager_skat_sats($B$25,$B$24,$B$14,$C$24,$B$26)*R6+AB5 -> 0 | AC6: =+SUM(Z6:AB6) -> 2.929417711 | AE6: 107.9202775 | AF6: =+U6 -> 110.8496952 | AH6: 2 | AI6: 2021-06-30 | AJ6: 110.7668169 | AK6: 0.1310951604 | AL6: =+Udbytte_fra_fond(AI6,$C$21,$C$22,+INDEX($AJ$4:AJ6,MAX(ROW(O6)-3-4/$C$21,1),1),AJ5*(1+L6),1) -> 0 | AM6: 0 | AN6: 0 | AO6: 110.7668169 | AQ6: 110.7668169 | AR6: 0 | AS6: 110.7668169 | AT6: 2.907040573 | AU6: =+SUM($AL$5:AL6)*($B$13-$C$24)+(AR6-SUM($AN$5:AN6))*($B$13) -> 0 | AV6: 2.907040573 | AX6: 107.8597764 | AY6: 110.7668169
A7: Log volatilitet p.a. | B7: =+logmoments(2,B3,B6,365) -> 0.1500940767 | E7: =1+E6 -> 3 | F7: 2021-09-30 | G7: -0.1661941063 | H7: 0.0004996254369 | I7: -0.1666104889 | J7: -0.1661941063 | K7: 0.0008738539016 | L7: -0.1669220947 | N7: =1+N6 -> 3 | O7: 2021-09-30 | P7: 92.38097331 | Q7: -0.1666104889 | R7: =+Udbytte_lagerfond(O7,$B$21,$B$22,+INDEX(P$4:$P7,MAX(ROW(O7)-3-4/$C$21,1),1),P6*(1+I7),$B$14,$B$15,1) -> 0 | S7: 0 | T7: 0 | U7: 92.38097331 | W7: 92.38097331 | X7: 0 | Y7: 92.38097331 | Z7: -2.057137206 | AA7: =+IF(X7-SUM($T$5:T7)>0,(X7-SUM($T$5:T7))*$B$14,(X7-SUM($T$5:T7))*$B$15) -> 0 | AB7: =+udbytte_lager_skat_sats($B$25,$B$24,$B$14,$C$24,$B$26)*R7+AB6 -> 0 | AC7: =+SUM(Z7:AB7) -> -2.057137206 | AE7: 94.43811052 | AF7: 92.38097331 | AH7: 3 | AI7: 2021-09-30 | AJ7: 92.27738784 | AK7: -0.1669220947 | AL7: =+Udbytte_fra_fond(AI7,$C$21,$C$22,+INDEX($AJ$4:AJ7,MAX(ROW(O7)-3-4/$C$21,1),1),AJ6*(1+L7),1) -> 0 | AM7: 0 | AN7: 0 | AO7: 92.27738784 | AQ7: 92.27738784 | AR7: 0 | AS7: 92.27738784 | AT7: -2.085105284 | AU7: =+SUM($AL$5:AL7)*($B$13-$C$24)+(AR7-SUM($AN$5:AN7))*($B$13) -> 0 | AV7: -2.085105284 | AX7: 94.36249312 | AY7: 92.27738784
A8: Log volatilitet m/m | B8: =+logmoments(2,B3,B6,365/4) -> 0.07872095313 | E8: 4 | F8: 2021-12-30 | G8: -0.1177909829 | H8: 0.0004996254369 | I8: -0.1182315369 | J8: -0.1177909829 | K8: 0.0008738539016 | L8: -0.1185612316 | N8: 4 | O8: 2021-12-30 | P8: 81.45862886 | Q8: -0.1182315369 | R8: =+Udbytte_lagerfond(O8,$B$21,$B$22,+INDEX(P$4:$P8,MAX(ROW(O8)-3-4/$C$21,1),1),P7*(1+I8),$B$14,$B$15,1) -> 0 | S8: 0 | T8: 0 | U8: 81.45862886 | W8: 81.45862886 | X8: 0 | Y8: 81.45862886 | Z8: -5.006170208 | AA8: =+IF(X8-SUM($T$5:T8)>0,(X8-SUM($T$5:T8))*$B$14,(X8-SUM($T$5:T8))*$B$15) -> 0 | AB8: =+udbytte_lager_skat_sats($B$25,$B$24,$B$14,$C$24,$B$26)*R8+AB7 -> 0 | AC8: -5.006170208 | AE8: 86.46479907 | AF8: 81.45862886 | AH8: 4 | AI8: 2021-12-30 | AJ8: 81.33686708 | AK8: -0.1185612316 | AL8: =+Udbytte_fra_fond(AI8,$C$21,$C$22,+INDEX($AJ$4:AJ8,MAX(ROW(O8)-3-4/$C$21,1),1),AJ7*(1+L8),1) -> 0 | AM8: 0 | AN8: 0 | AO8: 81.33686708 | AQ8: 81.33686708 | AR8: 0 | AS8: 81.33686708 | AT8: -5.039045888 | AU8: =+SUM($AL$5:AL8)*($B$13-$C$24)+(AR8-SUM($AN$5:AN8))*($B$13) -> 0 | AV8: -5.039045888 | AX8: 86.37591297 | AY8: 81.33686708
E9: 5 | F9: 2022-03-30 | G9: 0.05879914914 | H9: 0.0004996254369 | I9: 0.05827041032 | J9: 0.05879914914 | K9: 0.0008738539016 | L9: 0.05787472119 | N9: 5 | O9: 2022-03-30 | P9: 86.20525659 | Q9: 0.05827041032 | R9: =+Udbytte_lagerfond(O9,$B$21,$B$22,+INDEX(P$4:$P9,MAX(ROW(O9)-3-4/$C$21,1),1),P8*(1+I9),$B$14,$B$15,1) -> 0 | S9: 0 | T9: 0 | U9: 86.20525659 | W9: 86.20525659 | X9: 0 | Y9: 86.20525659 | Z9: -3.724580722 | AA9: =+IF(X9-SUM($T$5:T9)>0,(X9-SUM($T$5:T9))*$B$14,(X9-SUM($T$5:T9))*$B$15) -> 0 | AB9: =+udbytte_lager_skat_sats($B$25,$B$24,$B$14,$C$24,$B$26)*R9+AB8 -> 0 | AC9: -3.724580722 | AE9: 89.92983731 | AF9: 86.20525659 | AH9: 5 | AI9: 2022-03-30 | AJ9: 86.04421559 | AK9: 0.05787472119 | AL9: =+Udbytte_fra_fond(AI9,$C$21,$C$22,+INDEX($AJ$4:AJ9,MAX(ROW(O9)-3-4/$C$21,1),1),AJ8*(1+L9),1) -> 0 | AM9: 0 | AN9: 0 | AO9: 86.04421559 | AQ9: 86.04421559 | AR9: 0 | AS9: 86.04421559 | AT9: -3.768061792 | AU9: =+SUM($AL$5:AL9)*($B$13-$C$24)+(AR9-SUM($AN$5:AN9))*($B$13) -> 0 | AV9: -3.768061792 | AX9: 89.81227738 | AY9: 86.04421559
A10: Investor variable | B10: Værdi | E10: 6 | F10: 2022-06-30 | G10: 0.01815090425 | H10: 0.0004996254369 | I10: 0.01764246419 | J10: 0.01815090425 | K10: 0.0008738539016 | L10: 0.01726196591 | N10: 6 | O10: 2022-06-30 | P10: 87.72612974 | Q10: 0.01764246419 | R10: =+Udbytte_lagerfond(O10,$B$21,$B$22,+INDEX(P$4:$P10,MAX(ROW(O10)-3-4/$C$21,1),1),P9*(1+I10),$B$14,$B$15,1) -> 0 | S10: 0 | T10: 0 | U10: 87.72612974 | W10: 87.72612974 | X10: 0 | Y10: 87.72612974 | Z10: -3.313944971 | AA10: =+IF(X10-SUM($T$5:T10)>0,(X10-SUM($T$5:T10))*$B$14,(X10-SUM($T$5:T10))*$B$15) -> 0 | AB10: =+udbytte_lager_skat_sats($B$25,$B$24,$B$14,$C$24,$B$26)*R10+AB9 -> 0 | AC10: -3.313944971 | AE10: 91.04007471 | AF10: 87.72612974 | AH10: 6 | AI10: 2022-06-30 | AJ10: 87.5295079 | AK10: 0.01726196591 | AL10: =+Udbytte_fra_fond(AI10,$C$21,$C$22,+INDEX($AJ$4:AJ10,MAX(ROW(O10)-3-4/$C$21,1),1),AJ9*(1+L10),1) -> 0 | AM10: 0 | AN10: 0 | AO10: 87.5295079 | AQ10: 87.5295079 | AR10: 0 | AS10: 87.5295079 | AT10: -3.367032866 | AU10: =+SUM($AL$5:AL10)*($B$13-$C$24)+(AR10-SUM($AN$5:AN10))*($B$13) -> 0 | AV10: -3.367032866 | AX10: 90.89654077 | AY10: 87.5295079
A11: Investering i dag DKK (eller sæt=100 hvis afkast %) | B11: 100 | E11: 7 | F11: 2022-09-30 | G11: -0.0254442996 | H11: 0.0004996254369 | I11: -0.02593096927 | J11: -0.0254442996 | K11: 0.0008738539016 | L11: -0.02629517536 | N11: 7 | O11: 2022-09-30 | P11: 85.45130616 | Q11: -0.02593096927 | R11: =+Udbytte_lagerfond(O11,$B$21,$B$22,+INDEX(P$4:$P11,MAX(ROW(O11)-3-4/$C$21,1),1),P10*(1+I11),$B$14,$B$15,1) -> 0 | S11: 0 | T11: 0 | U11: 85.45130616 | W11: 85.45130616 | X11: 0 | Y11: 85.45130616 | Z11: -3.928147336 | AA11: =+IF(X11-SUM($T$5:T11)>0,(X11-SUM($T$5:T11))*$B$14,(X11-SUM($T$5:T11))*$B$15) -> 0 | AB11: =+udbytte_lager_skat_sats($B$25,$B$24,$B$14,$C$24,$B$26)*R11+AB10 -> 0 | AC11: -3.928147336 | AE11: 89.3794535 | AF11: 85.45130616 | AH11: 7 | AI11: 2022-09-30 | AJ11: 85.22790414 | AK11: -0.02629517536 | AL11: =+Udbytte_fra_fond(AI11,$C$21,$C$22,+INDEX($AJ$4:AJ11,MAX(ROW(O11)-3-4/$C$21,1),1),AJ10*(1+L11),1) -> 0 | AM11: 0 | AN11: 0 | AO11: 85.22790414 | AQ11: 85.22790414 | AR11: 0 | AS11: 85.22790414 | AT11: -3.988465882 | AU11: =+SUM($AL$5:AL11)*($B$13-$C$24)+(AR11-SUM($AN$5:AN11))*($B$13) -> 0 | AV11: -3.988465882 | AX11: 89.21637002 | AY11: 85.22790414
A12: Reinvestering af evt. udbytter i fonde | B12: Ja | E12: 8 | F12: 2022-12-30 | G12: 0.09013138695 | H12: 0.0004996254369 | I12: 0.08958700157 | J12: 0.09013138695 | K12: 0.0008738539016 | L12: 0.0891796031 | N12: 8 | O12: 2022-12-30 | P12: 93.10663246 | Q12: 0.08958700157 | R12: =+Udbytte_lagerfond(O12,$B$21,$B$22,+INDEX(P$4:$P12,MAX(ROW(O12)-3-4/$C$21,1),1),P11*(1+I12),$B$14,$B$15,1) -> 0 | S12: 0 | T12: 0 | U12: 93.10663246 | W12: 93.10663246 | X12: 0 | Y12: 93.10663246 | Z12: -1.861209235 | AA12: =+IF(X12-SUM($T$5:T12)>0,(X12-SUM($T$5:T12))*$B$14,(X12-SUM($T$5:T12))*$B$15) -> 0 | AB12: =+udbytte_lager_skat_sats($B$25,$B$24,$B$14,$C$24,$B$26)*R12+AB11 -> 0 | AC12: -1.861209235 | AE12: 94.9678417 | AF12: 93.10663246 | AH12: 8 | AI12: 2022-12-30 | AJ12: 89.38100649 | AK12: 0.04872937319 | AL12: =+Udbytte_fra_fond(AI12,$C$21,$C$22,+INDEX($AJ$4:AJ12,MAX(ROW(O12)-3-4/$C$21,1),1),AJ11*(1+L12),1) -> 3.447488318 | AM12: 0.9308218458 | AN12: 2.516666472 | AO12: 92.82849481 | AQ12: 89.38100649 | AR12: 2.516666472 | AS12: 91.89767296 | AT12: -2.867128248 | AU12: =+SUM($AL$5:AL12)*($B$13-$C$24)+(AR12-SUM($AN$5:AN12))*($B$13) -> 0 | AV12: -2.867128248 | AX12: 94.76480121 | AY12: 92.82849481
A13: Realisations skat (også udbytte) | B13: 0.27 | E13: 9 | F13: 2023-03-30 | G13: 0.09736441139 | H13: 0.0004996254369 | I13: 0.09681641401 | J13: 0.09736441139 | K13: 0.0008738539016 | L13: 0.09640631245 | N13: 9 | O13: 2023-03-30 | P13: 102.1208827 | Q13: 0.09681641401 | R13: =+Udbytte_lagerfond(O13,$B$21,$B$22,+INDEX(P$4:$P13,MAX(ROW(O13)-3-4/$C$21,1),1),P12*(1+I13),$B$14,$B$15,1) -> 0 | S13: 0 | T13: 0 | U13: 102.1208827 | W13: 102.1208827 | X13: 0 | Y13: 102.1208827 | Z13: 0.5726383395 | AA13: =+IF(X13-SUM($T$5:T13)>0,(X13-SUM($T$5:T13))*$B$14,(X13-SUM($T$5:T13))*$B$15) -> 0 | AB13: =+udbytte_lager_skat_sats($B$25,$B$24,$B$14,$C$24,$B$26)*R13+AB12 -> 0 | AC13: 0.5726383395 | AE13: 101.5482444 | AF13: 102.1208827 | AH13: 9 | AI13: 2023-03-30 | AJ13: 97.99789973 | AK13: 0.09640631245 | AL13: =+Udbytte_fra_fond(AI13,$C$21,$C$22,+INDEX($AJ$4:AJ13,MAX(ROW(O13)-3-4/$C$21,1),1),AJ12*(1+L13),1) -> 0 | AM13: 0 | AN13: 0 | AO13: 101.7777477 | AQ13: 97.99789973 | AR13: 2.759289006 | AS13: 100.7571887 | AT13: -0.5405670733 | AU13: =+SUM($AL$5:AL13)*($B$13-$C$24)+(AR13-SUM($AN$5:AN13))*($B$13) -> 0.06550808424 | AV13: -0.4750589891 | AX13: 101.2322477 | AY13: 101.7777477
A14: Kapitalindkomst skat (positiv) | B14: 0.27 | C14: Ens ved Aktiebaseret fond - pos liste | E14: 10 | F14: 2023-06-30 | G14: 0.09053197236 | H14: 0.0004996254369 | I14: 0.08998738694 | J14: 0.09053197236 | K14: 0.0008738539016 | L14: 0.08957983877 | N14: 10 | O14: 2023-06-30 | P14: 111.3104741 | Q14: 0.08998738694 | R14: =+Udbytte_lagerfond(O14,$B$21,$B$22,+INDEX(P$4:$P14,MAX(ROW(O14)-3-4/$C$21,1),1),P13*(1+I14),$B$14,$B$15,1) -> 0 | S14: 0 | T14: 0 | U14: 111.3104741 | W14: 111.3104741 | X14: 0 | Y14: 111.3104741 | Z14: 3.053828015 | AA14: =+IF(X14-SUM($T$5:T14)>0,(X14-SUM($T$5:T14))*$B$14,(X14-SUM($T$5:T14))*$B$15) -> 0 | AB14: =+udbytte_lager_skat_sats($B$25,$B$24,$B$14,$C$24,$B$26)*R14+AB13 -> 0 | AC14: 3.053828015 | AE14: 108.2566461 | AF14: 111.3104741 | AH14: 10 | AI14: 2023-06-30 | AJ14: 106.7765358 | AK14: 0.08957983877 | AL14: =+Udbytte_fra_fond(AI14,$C$21,$C$22,+INDEX($AJ$4:AJ14,MAX(ROW(O14)-3-4/$C$21,1),1),AJ13*(1+L14),1) -> 0 | AM14: 0 | AN14: 0 | AO14: 110.8949819 | AQ14: 106.7765358 | AR14: 3.006465671 | AS14: 109.7830015 | AT14: 1.829664662 | AU14: =+SUM($AL$5:AL14)*($B$13-$C$24)+(AR14-SUM($AN$5:AN14))*($B$13) -> 0.1322457836 | AV14: 1.961910446 | AX14: 107.821091 | AY14: 110.8949819
A15: Kapitalindkomst skat (negativ) | B15: 0.27 | E15: 11 | F15: 2023-09-30 | G15: 0.06599945669 | H15: 0.0004996254369 | I15: 0.06546712221 | J15: 0.06599945669 | K15: 0.0008738539016 | L15: 0.06506874221 | N15: 11 | O15: 2023-09-30 | P15: 118.5976505 | Q15: 0.06546712221 | R15: =+Udbytte_lagerfond(O15,$B$21,$B$22,+INDEX(P$4:$P15,MAX(ROW(O15)-3-4/$C$21,1),1),P14*(1+I15),$B$14,$B$15,1) -> 0 | S15: 0 | T15: 0 | U15: 118.5976505 | W15: 118.5976505 | X15: 0 | Y15: 118.5976505 | Z15: 5.021365646 | AA15: =+IF(X15-SUM($T$5:T15)>0,(X15-SUM($T$5:T15))*$B$14,(X15-SUM($T$5:T15))*$B$15) -> 0 | AB15: =+udbytte_lager_skat_sats($B$25,$B$24,$B$14,$C$24,$B$26)*R15+AB14 -> 0 | AC15: 5.021365646 | AE15: 113.5762849 | AF15: 118.5976505 | AH15: 11 | AI15: 2023-09-30 | AJ15: 113.7243507 | AK15: 0.06506874221 | AL15: =+Udbytte_fra_fond(AI15,$C$21,$C$22,+INDEX($AJ$4:AJ15,MAX(ROW(O15)-3-4/$C$21,1),1),AJ14*(1+L15),1) -> 0 | AM15: 0 | AN15: 0 | AO15: 118.1107789 | AQ15: 113.7243507 | AR15: 3.20209261 | AS15: 116.9264433 | AT15: 3.70557468 | AU15: =+SUM($AL$5:AL15)*($B$13-$C$24)+(AR15-SUM($AN$5:AN15))*($B$13) -> 0.1850650573 | AV15: 3.890639737 | AX15: 113.0358035 | AY15: 118.1107789
E16: 12 | F16: 2023-12-30 | G16: 0.04876934581 | H16: 0.0004996254369 | I16: 0.04824561564 | J16: 0.04876934581 | K16: 0.0008738539016 | L16: 0.04785367479 | N16: 12 | O16: 2023-12-30 | P16: 124.3194672 | Q16: 0.04824561564 | R16: =+Udbytte_lagerfond(O16,$B$21,$B$22,+INDEX(P$4:$P16,MAX(ROW(O16)-3-4/$C$21,1),1),P15*(1+I16),$B$14,$B$15,1) -> 0 | S16: 0 | T16: 0 | U16: 124.3194672 | W16: 124.3194672 | X16: 0 | Y16: 124.3194672 | Z16: 6.566256145 | AA16: =+IF(X16-SUM($T$5:T16)>0,(X16-SUM($T$5:T16))*$B$14,(X16-SUM($T$5:T16))*$B$15) -> 0 | AB16: =+udbytte_lager_skat_sats($B$25,$B$24,$B$14,$C$24,$B$26)*R16+AB15 -> 0 | AC16: 6.566256145 | AE16: 117.7532111 | AF16: 124.3194672 | AH16: 12 | AI16: 2023-12-30 | AJ16: 110.2308371 | AK16: -0.03071913419 | AL16: =+Udbytte_fra_fond(AI16,$C$21,$C$22,+INDEX($AJ$4:AJ16,MAX(ROW(O16)-3-4/$C$21,1),1),AJ15*(1+L16),1) -> 8.935641681 | AM16: 2.412623254 | AN16: 6.523018427 | AO16: 123.7628137 | AQ16: 110.2308371 | AR16: 9.626745525 | AS16: 119.8575826 | AT16: 2.762326011 | AU16: =+SUM($AL$5:AL16)*($B$13-$C$24)+(AR16-SUM($AN$5:AN16))*($B$13) -> 0.1585063689 | AV16: 2.92083238 | AX16: 116.9367502 | AY16: 123.7628137
A17: Fonds variable | B17: Fond 1 | C17: Fond 2 | E17: 13 | F17: 2024-03-30 | G17: 0.08056411195 | H17: 0.0004996254369 | I17: 0.08002450423 | J17: 0.08056411195 | K17: 0.0008738539016 | L17: 0.0796206812 | N17: 13 | O17: 2024-03-30 | P17: 134.2680709 | Q17: 0.08002450423 | R17: =+Udbytte_lagerfond(O17,$B$21,$B$22,+INDEX(P$4:$P17,MAX(ROW(O17)-3-4/$C$21,1),1),P16*(1+I17),$B$14,$B$15,1) -> 0 | S17: 0 | T17: 0 | U17: 134.2680709 | W17: 134.2680709 | X17: 0 | Y17: 134.2680709 | Z17: 9.252379152 | AA17: =+IF(X17-SUM($T$5:T17)>0,(X17-SUM($T$5:T17))*$B$14,(X17-SUM($T$5:T17))*$B$15) -> 0 | AB17: =+udbytte_lager_skat_sats($B$25,$B$24,$B$14,$C$24,$B$26)*R17+AB16 -> 0 | AC17: 9.252379152 | AE17: 125.0156918 | AF17: 134.2680709 | AH17: 13 | AI17: 2024-03-30 | AJ17: 119.0074914 | AK17: 0.0796206812 | AL17: =+Udbytte_fra_fond(AI17,$C$21,$C$22,+INDEX($AJ$4:AJ17,MAX(ROW(O17)-3-4/$C$21,1),1),AJ16*(1+L17),1) -> 0 | AM17: 0 | AN17: 0 | AO17: 133.6168932 | AQ17: 119.0074914 | AR17: 10.39323356 | AS17: 129.400725 | AT17: 5.132022682 | AU17: =+SUM($AL$5:AL17)*($B$13-$C$24)+(AR17-SUM($AN$5:AN17))*($B$13) -> 0.3654581388 | AV17: 5.497480821 | AX17: 123.9032442 | AY17: 133.6168932
A18: Skatteprincrip | B18: Lager | C18: Realisation | E18: =1+E17 -> 14 | F18: =+EDATE(F17,3) -> 2024-06-30 | G18: -0.06542441433 | H18: 0.0004996254369 | I18: -0.06589111889 | J18: -0.06542441433 | K18: 0.0008738539016 | L18: -0.06624038381 | N18: =1+N17 -> 14 | O18: =+EDATE(O17,3) -> 2024-06-30 | P18: 125.4209975 | Q18: -0.06589111889 | R18: =+Udbytte_lagerfond(O18,$B$21,$B$22,+INDEX(P$4:$P18,MAX(ROW(O18)-3-4/$C$21,1),1),P17*(1+I18),$B$14,$B$15,1) -> 0 | S18: 0 | T18: 0 | U18: 125.4209975 | W18: 125.4209975 | X18: 0 | Y18: 125.4209975 | Z18: 6.863669328 | AA18: =+IF(X18-SUM($T$5:T18)>0,(X18-SUM($T$5:T18))*$B$14,(X18-SUM($T$5:T18))*$B$15) -> 0 | AB18: =+udbytte_lager_skat_sats($B$25,$B$24,$B$14,$C$24,$B$26)*R18+AB17 -> 0 | AC18: 6.863669328 | AE18: 118.5573282 | AF18: 125.4209975 | AH18: 14 | AI18: 2024-06-30 | AJ18: 111.1243895 | AK18: -0.06624038381 | AL18: =+Udbytte_fra_fond(AI18,$C$21,$C$22,+INDEX($AJ$4:AJ18,MAX(ROW(O18)-3-4/$C$21,1),1),AJ17*(1+L18),1) -> 0 | AM18: 0 | AN18: 0 | AO18: 124.7660589 | AQ18: 111.1243895 | AR18: 9.704781781 | AS18: 120.8291713 | AT18: 3.003585167 | AU18: =+SUM($AL$5:AL18)*($B$13-$C$24)+(AR18-SUM($AN$5:AN18))*($B$13) -> 0.1795761581 | AV18: 3.183161325 | AX18: 117.64601 | AY18: 124.7660589
A19: Navne på fonde | B19: XACT C25 | C19: Sparindex C25 | E19: =1+E18 -> 15 | F19: =+EDATE(F18,3) -> 2024-09-30 | G19: 0.01488549064 | H19: 0.0004996254369 | I19: 0.01437868124 | J19: 0.01488549064 | K19: 0.0008738539016 | L19: 0.0139994033 | N19: =1+N18 -> 15 | O19: =+EDATE(O18,3) -> 2024-09-30 | P19: 127.2243861 | Q19: 0.01437868124 | R19: =+Udbytte_lagerfond(O19,$B$21,$B$22,+INDEX(P$4:$P19,MAX(ROW(O19)-3-4/$C$21,1),1),P18*(1+I19),$B$14,$B$15,1) -> 0 | S19: 0 | T19: 0 | U19: 127.2243861 | W19: 127.2243861 | X19: 0 | Y19: 127.2243861 | Z19: 7.350584235 | AA19: =+IF(X19-SUM($T$5:T19)>0,(X19-SUM($T$5:T19))*$B$14,(X19-SUM($T$5:T19))*$B$15) -> 0 | AB19: =+udbytte_lager_skat_sats($B$25,$B$24,$B$14,$C$24,$B$26)*R19+AB18 -> 0 | AC19: 7.350584235 | AE19: 119.8738018 | AF19: 127.2243861 | AH19: 15 | AI19: 2024-09-30 | AJ19: 112.6800647 | AK19: 0.0139994033 | AL19: =+Udbytte_fra_fond(AI19,$C$21,$C$22,+INDEX($AJ$4:AJ19,MAX(ROW(O19)-3-4/$C$21,1),1),AJ18*(1+L19),1) -> 0 | AM19: 0 | AN19: 0 | AO19: 126.5127093 | AQ19: 112.6800647 | AR19: 9.840642935 | AS19: 122.5207076 | AT19: 3.423617456 | AU19: =+SUM($AL$5:AL19)*($B$13-$C$24)+(AR19-SUM($AN$5:AN19))*($B$13) -> 0.2162586697 | AV19: 3.639876126 | AX19: 118.8808315 | AY19: 126.5127093
A20: Beta (sammenhæng mellem bruttofondsafkast og marked) | B20: 1 | C20: 1 | E20: =1+E19 -> 16 | F20: =+EDATE(F19,3) -> 2024-12-30 | G20: 0.06099454016 | H20: 0.0004996254369 | I20: 0.06046470502 | J20: 0.06099454016 | K20: 0.0008738539016 | L20: 0.06006819543 | N20: =1+N19 -> 16 | O20: =+EDATE(O19,3) -> 2024-12-30 | P20: 134.916971 | Q20: 0.06046470502 | R20: =+Udbytte_lagerfond(O20,$B$21,$B$22,+INDEX(P$4:$P20,MAX(ROW(O20)-3-4/$C$21,1),1),P19*(1+I20),$B$14,$B$15,1) -> 0 | S20: 0 | T20: 0 | U20: 134.916971 | W20: 134.916971 | X20: 0 | Y20: 134.916971 | Z20: 9.427582178 | AA20: =+IF(X20-SUM($T$5:T20)>0,(X20-SUM($T$5:T20))*$B$14,(X20-SUM($T$5:T20))*$B$15) -> 0 | AB20: =+udbytte_lager_skat_sats($B$25,$B$24,$B$14,$C$24,$B$26)*R20+AB19 -> 0 | AC20: 9.427582178 | AE20: 125.4893889 | AF20: 134.916971 | AH20: 16 | AI20: 2024-12-30 | AJ20: 116.6832381 | AK20: 0.03552690036 | AL20: =+Udbytte_fra_fond(AI20,$C$21,$C$22,+INDEX($AJ$4:AJ20,MAX(ROW(O20)-3-4/$C$21,1),1),AJ19*(1+L20),1) -> 2.765314716 | AM20: 0.7466349733 | AN20: 2.018679743 | AO20: 134.1120995 | AQ20: 116.6832381 | AR20: 12.20893022 | AS20: 128.8921683 | AT20: 4.504474282 | AU20: =+SUM($AL$5:AL20)*($B$13-$C$24)+(AR20-SUM($AN$5:AN20))*($B$13) -> 0.3106527058 | AV20: 4.815126988 | AX20: 124.0770413 | AY20: 134.1120995
A21: Udbytte frekvens (Akkumulerende=0) | B21: 0 | C21: 1 | E21: =1+E20 -> 17 | F21: =+EDATE(F20,3) -> 2025-03-30 | G21: 0.0129710497 | H21: 0.0004996254369 | I21: 0.01246519634 | J21: 0.0129710497 | K21: 0.0008738539016 | L21: 0.01208663385 | N21: =1+N20 -> 17 | O21: =+EDATE(O20,3) -> 2025-03-30 | P21: 136.5987376 | Q21: 0.01246519634 | R21: =+Udbytte_lagerfond(O21,$B$21,$B$22,+INDEX(P$4:$P21,MAX(ROW(O21)-3-4/$C$21,1),1),P20*(1+I21),$B$14,$B$15,1) -> 0 | S21: 0 | T21: 0 | U21: 136.5987376 | W21: 136.5987376 | X21: 0 | Y21: 136.5987376 | Z21: 9.881659142 | AA21: =+IF(X21-SUM($T$5:T21)>0,(X21-SUM($T$5:T21))*$B$14,(X21-SUM($T$5:T21))*$B$15) -> 0 | AB21: =+udbytte_lager_skat_sats($B$25,$B$24,$B$14,$C$24,$B$26)*R21+AB20 -> 0 | AC21: 9.881659142 | AE21: 126.7170784 | AF21: 136.5987376 | AH21: 17 | AI21: 2025-03-30 | AJ21: 118.0935457 | AK21: 0.01208663385 | AL21: =+Udbytte_fra_fond(AI21,$C$21,$C$22,+INDEX($AJ$4:AJ21,MAX(ROW(O21)-3-4/$C$21,1),1),AJ20*(1+L21),1) -> 0 | AM21: 0 | AN21: 0 | AO21: 135.7330633 | AQ21: 118.0935457 | AR21: 12.35649509 | AS21: 130.4500407 | AT21: 4.885257328 | AU21: =+SUM($AL$5:AL21)*($B$13-$C$24)+(AR21-SUM($AN$5:AN21))*($B$13) -> 0.3504952205 | AV21: 5.235752548 | AX21: 125.2142882 | AY21: 135.7330633
A22: Udlodning teknisk (af positivt totalafkast) | B22: 0.3 | C22: 0.3 | E22: 18 | F22: 2025-06-30 | G22: 0.1495666135 | H22: 0.0004996254369 | I22: 0.1489925476 | J22: 0.1495666135 | K22: 0.0008738539016 | L22: 0.1485629373 | N22: 18 | O22: 2025-06-30 | P22: 156.9509315 | Q22: 0.1489925476 | R22: =+Udbytte_lagerfond(O22,$B$21,$B$22,+INDEX(P$4:$P22,MAX(ROW(O22)-3-4/$C$21,1),1),P21*(1+I22),$B$14,$B$15,1) -> 0 | S22: 0 | T22: 0 | U22: 156.9509315 | W22: 156.9509315 | X22: 0 | Y22: 156.9509315 | Z22: 15.3767515 | AA22: =+IF(X22-SUM($T$5:T22)>0,(X22-SUM($T$5:T22))*$B$14,(X22-SUM($T$5:T22))*$B$15) -> 0 | AB22: =+udbytte_lager_skat_sats($B$25,$B$24,$B$14,$C$24,$B$26)*R22+AB21 -> 0 | AC22: 15.3767515 | AE22: 141.57418 | AF22: 156.9509315 | AH22: 18 | AI22: 2025-06-30 | AJ22: 135.6378697 | AK22: 0.1485629373 | AL22: =+Udbytte_fra_fond(AI22,$C$21,$C$22,+INDEX($AJ$4:AJ22,MAX(ROW(O22)-3-4/$C$21,1),1),AJ21*(1+L22),1) -> 0 | AM22: 0 | AN22: 0 | AO22: 155.8979659 | AQ22: 135.6378697 | AR22: 14.19221229 | AS22: 149.830082 | AT22: 9.622224814 | AU22: =+SUM($AL$5:AL22)*($B$13-$C$24)+(AR22-SUM($AN$5:AN22))*($B$13) -> 0.846138866 | AV22: 10.46836368 | AX22: 139.3617183 | AY22: 155.8979659
A23: Omkostninger p.a. (ÅOP / TER) | B23: 0.002 | C23: 0.0035 | E23: 19 | F23: 2025-09-30 | G23: -0.05745713264 | H23: 0.0004996254369 | I23: -0.05792781587 | J23: -0.05745713264 | K23: 0.0008738539016 | L23: -0.05828005829 | N23: 19 | O23: 2025-09-30 | P23: 147.8591068 | Q23: -0.05792781587 | R23: =+Udbytte_lagerfond(O23,$B$21,$B$22,+INDEX(P$4:$P23,MAX(ROW(O23)-3-4/$C$21,1),1),P22*(1+I23),$B$14,$B$15,1) -> 0 | S23: 0 | T23: 0 | U23: 147.8591068 | W23: 147.8591068 | X23: 0 | Y23: 147.8591068 | Z23: 12.92195884 | AA23: =+IF(X23-SUM($T$5:T23)>0,(X23-SUM($T$5:T23))*$B$14,(X23-SUM($T$5:T23))*$B$15) -> 0 | AB23: =+udbytte_lager_skat_sats($B$25,$B$24,$B$14,$C$24,$B$26)*R23+AB22 -> 0 | AC23: 12.92195884 | AE23: 134.937148 | AF23: 147.8591068 | AH23: 19 | AI23: 2025-09-30 | AJ23: 127.7328867 | AK23: -0.05828005829 | AL23: =+Udbytte_fra_fond(AI23,$C$21,$C$22,+INDEX($AJ$4:AJ23,MAX(ROW(O23)-3-4/$C$21,1),1),AJ22*(1+L23),1) -> 0 | AM23: 0 | AN23: 0 | AO23: 146.8122234 | AQ23: 127.7328867 | AR23: 13.36508933 | AS23: 141.0979761 | AT23: 7.487879417 | AU23: =+SUM($AL$5:AL23)*($B$13-$C$24)+(AR23-SUM($AN$5:AN23))*($B$13) -> 0.6228156669 | AV23: 8.110695084 | AX23: 132.987281 | AY23: 146.8122234
A24: Evt tilbageholdt udbytteskat (27% i DK undtagen på oblifonde)) | B24: 0.27 | C24: 0.27 | E24: 20 | F24: 2025-12-30 | G24: -0.02940063694 | H24: 0.0004996254369 | I24: -0.02988533091 | J24: -0.02940063694 | K24: 0.0008738539016 | L24: -0.03024805846 | N24: 20 | O24: 2025-12-30 | P24: 143.4402885 | Q24: -0.02988533091 | R24: =+Udbytte_lagerfond(O24,$B$21,$B$22,+INDEX(P$4:$P24,MAX(ROW(O24)-3-4/$C$21,1),1),P23*(1+I24),$B$14,$B$15,1) -> 0 | S24: 0 | T24: 0 | U24: 143.4402885 | W24: 143.4402885 | X24: 0 | Y24: 143.4402885 | Z24: 11.72887789 | AA24: =+IF(X24-SUM($T$5:T24)>0,(X24-SUM($T$5:T24))*$B$14,(X24-SUM($T$5:T24))*$B$15) -> 0 | AB24: =+udbytte_lager_skat_sats($B$25,$B$24,$B$14,$C$24,$B$26)*R24+AB23 -> 0 | AC24: 11.72887789 | AE24: 131.7114106 | AF24: 143.4402885 | AH24: 20 | AI24: 2025-12-30 | AJ24: 121.7134219 | AK24: -0.04712541168 | AL24: =+Udbytte_fra_fond(AI24,$C$21,$C$22,+INDEX($AJ$4:AJ24,MAX(ROW(O24)-3-4/$C$21,1),1),AJ23*(1+L24),1) -> 2.155793047 | AM24: 0.5820641226 | AN24: 1.573728924 | AO24: 142.3714386 | AQ24: 121.7134219 | AR24: 14.30898292 | AS24: 136.0224048 | AT24: 5.862623902 | AU24: =+SUM($AL$5:AL24)*($B$13-$C$24)+(AR24-SUM($AN$5:AN24))*($B$13) -> 0.4527601259 | AV24: 6.315384028 | AX24: 129.7070208 | AY24: 142.3714386
A25: Udenlandsk fond? (Ja=0, Nej=1) | B25: 1 | E25: 21 | F25: 2026-03-30 | G25: 0.06960923844 | H25: 0.0004996254369 | I25: 0.06907510132 | J25: 0.06960923844 | K25: 0.0008738539016 | L25: 0.06867537229 | N25: 21 | O25: 2026-03-30 | P25: 153.3484409 | Q25: 0.06907510132 | R25: =+Udbytte_lagerfond(O25,$B$21,$B$22,+INDEX(P$4:$P25,MAX(ROW(O25)-3-4/$C$21,1),1),P24*(1+I25),$B$14,$B$15,1) -> 0 | S25: 0 | T25: 0 | U25: 153.3484409 | W25: 153.3484409 | X25: 0 | Y25: 153.3484409 | Z25: 14.40407905 | AA25: =+IF(X25-SUM($T$5:T25)>0,(X25-SUM($T$5:T25))*$B$14,(X25-SUM($T$5:T25))*$B$15) -> 0 | AB25: =+udbytte_lager_skat_sats($B$25,$B$24,$B$14,$C$24,$B$26)*R25+AB24 -> 0 | AC25: 14.40407905 | AE25: 138.9443619 | AF25: 153.3484409 | AH25: 21 | AI25: 2026-03-30 | AJ25: 130.0721364 | AK25: 0.06867537229 | AL25: =+Udbytte_fra_fond(AI25,$C$21,$C$22,+INDEX($AJ$4:AJ25,MAX(ROW(O25)-3-4/$C$21,1),1),AJ24*(1+L25),1) -> 0 | AM25: 0 | AN25: 0 | AO25: 152.1488502 | AQ25: 130.0721364 | AR25: 15.29165765 | AS25: 145.3637941 | AT25: 8.119476833 | AU25: =+SUM($AL$5:AL25)*($B$13-$C$24)+(AR25-SUM($AN$5:AN25))*($B$13) -> 0.7180823028 | AV25: 8.837559136 | AX25: 136.5262349 | AY25: 152.1488502
A26: ..hvis "ja", henter du udbytteskat refusion? (Ja=0. Nej=1) | B26: 0 | E26: 22 | F26: 2026-06-30 | G26: 0.004756269347 | H26: 0.0004996254369 | I26: 0.004254518245 | J26: 0.004756269347 | K26: 0.0008738539016 | L26: 0.003879025744 | N26: 22 | O26: 2026-06-30 | P26: 154.0008647 | Q26: 0.004254518245 | R26: =+Udbytte_lagerfond(O26,$B$21,$B$22,+INDEX(P$4:$P26,MAX(ROW(O26)-3-4/$C$21,1),1),P25*(1+I26),$B$14,$B$15,1) -> 0 | S26: 0 | T26: 0 | U26: 154.0008647 | W26: 154.0008647 | X26: 0 | Y26: 154.0008647 | Z26: 14.58023346 | AA26: =+IF(X26-SUM($T$5:T26)>0,(X26-SUM($T$5:T26))*$B$14,(X26-SUM($T$5:T26))*$B$15) -> 0 | AB26: =+udbytte_lager_skat_sats($B$25,$B$24,$B$14,$C$24,$B$26)*R26+AB25 -> 0 | AC26: 14.58023346 | AE26: 139.4206312 | AF26: 154.0008647 | AH26: 22 | AI26: 2026-06-30 | AJ26: 130.5766896 | AK26: 0.003879025744 | AL26: =+Udbytte_fra_fond(AI26,$C$21,$C$22,+INDEX($AJ$4:AJ26,MAX(ROW(O26)-3-4/$C$21,1),1),AJ25*(1+L26),1) -> 0 | AM26: 0 | AN26: 0 | AO26: 152.7390395 | AQ26: 130.5766896 | AR26: 15.35097438 | AS26: 145.927664 | AT26: 8.255706188 | AU26: =+SUM($AL$5:AL26)*($B$13-$C$24)+(AR26-SUM($AN$5:AN26))*($B$13) -> 0.7340978209 | AV26: 8.989804008 | AX26: 136.93786 | AY26: 152.7390395
E27: 23 | F27: 2026-09-30 | G27: 0.09216489846 | H27: 0.0004996254369 | I27: 0.09161949759 | J27: 0.09216489846 | K27: 0.0008738539016 | L27: 0.09121133917 | N27: 23 | O27: 2026-09-30 | P27: 168.1103465 | Q27: 0.09161949759 | R27: =+Udbytte_lagerfond(O27,$B$21,$B$22,+INDEX(P$4:$P27,MAX(ROW(O27)-3-4/$C$21,1),1),P26*(1+I27),$B$14,$B$15,1) -> 0 | S27: 0 | T27: 0 | U27: 168.1103465 | W27: 168.1103465 | X27: 0 | Y27: 168.1103465 | Z27: 18.38979356 | AA27: =+IF(X27-SUM($T$5:T27)>0,(X27-SUM($T$5:T27))*$B$14,(X27-SUM($T$5:T27))*$B$15) -> 0 | AB27: =+udbytte_lager_skat_sats($B$25,$B$24,$B$14,$C$24,$B$26)*R27+AB26 -> 0 | AC27: 18.38979356 | AE27: 149.720553 | AF27: 168.1103465 | AH27: 23 | AI27: 2026-09-30 | AJ27: 142.4867643 | AK27: 0.09121133917 | AL27: =+Udbytte_fra_fond(AI27,$C$21,$C$22,+INDEX($AJ$4:AJ27,MAX(ROW(O27)-3-4/$C$21,1),1),AJ26*(1+L27),1) -> 0 | AM27: 0 | AN27: 0 | AO27: 166.6705718 | AQ27: 142.4867643 | AR27: 16.75115732 | AS27: 159.2379216 | AT27: 11.47142636 | AU27: =+SUM($AL$5:AL27)*($B$13-$C$24)+(AR27-SUM($AN$5:AN27))*($B$13) -> 1.112147212 | AV27: 12.58357357 | AX27: 146.654348 | AY27: 166.6705718
A28: Afkast p.a. simulation - efter skat | B28: =+B19 -> XACT C25 | C28: =+C19 -> Sparindex C25 | E28: 24 | F28: 2026-12-30 | G28: -0.03489760724 | H28: 0.0004996254369 | I28: -0.03537955615 | J28: -0.03489760724 | K28: 0.0008738539016 | L28: -0.0357402294 | N28: 24 | O28: 2026-12-30 | P28: 162.1626771 | Q28: -0.03537955615 | R28: =+Udbytte_lagerfond(O28,$B$21,$B$22,+INDEX(P$4:$P28,MAX(ROW(O28)-3-4/$C$21,1),1),P27*(1+I28),$B$14,$B$15,1) -> 0 | S28: 0 | T28: 0 | U28: 162.1626771 | W28: 162.1626771 | X28: 0 | Y28: 162.1626771 | Z28: 16.78392281 | AA28: =+IF(X28-SUM($T$5:T28)>0,(X28-SUM($T$5:T28))*$B$14,(X28-SUM($T$5:T28))*$B$15) -> 0 | AB28: =+udbytte_lager_skat_sats($B$25,$B$24,$B$14,$C$24,$B$26)*R28+AB27 -> 0 | AC28: 16.78392281 | AE28: 145.3787543 | AF28: 162.1626771 | AH28: 24 | AI28: 2026-12-30 | AJ28: 132.6900048 | AK28: -0.06875557552 | AL28: =+Udbytte_fra_fond(AI28,$C$21,$C$22,+INDEX($AJ$4:AJ28,MAX(ROW(O28)-3-4/$C$21,1),1),AJ27*(1+L28),1) -> 4.704249841 | AM28: 1.270147457 | AN28: 3.434102384 | AO28: 160.7137274 | AQ28: 132.6900048 | AR28: 19.03352424 | AS28: 151.7235291 | AT28: 8.826301302 | AU28: =+SUM($AL$5:AL28)*($B$13-$C$24)+(AR28-SUM($AN$5:AN28))*($B$13) -> 0.8011786376 | AV28: 9.627479939 | AX28: 142.0960491 | AY28: 160.7137274
A29: =+EDATE($F$4,12) -> 2021-12-30 | B29: =+(1+Options!C10)^(1/Options!$B4)-1 -> 0.04036620862 | C29: =+(1+Options!D10)^(1/Options!$B4)-1 -> 0.03921686763 | E29: 25 | F29: 2027-03-30 | G29: -0.04567497596 | H29: 0.0004996254369 | I29: -0.04615154291 | J29: -0.04567497596 | K29: 0.0008738539016 | L29: -0.0465081885 | N29: 25 | O29: 2027-03-30 | P29: 154.6786193 | Q29: -0.04615154291 | R29: =+Udbytte_lagerfond(O29,$B$21,$B$22,+INDEX(P$4:$P29,MAX(ROW(O29)-3-4/$C$21,1),1),P28*(1+I29),$B$14,$B$15,1) -> 0 | S29: 0 | T29: 0 | U29: 154.6786193 | W29: 154.6786193 | X29: 0 | Y29: 154.6786193 | Z29: 14.76322722 | AA29: =+IF(X29-SUM($T$5:T29)>0,(X29-SUM($T$5:T29))*$B$14,(X29-SUM($T$5:T29))*$B$15) -> 0 | AB29: =+udbytte_lager_skat_sats($B$25,$B$24,$B$14,$C$24,$B$26)*R29+AB28 -> 0 | AC29: 14.76322722 | AE29: 139.9153921 | AF29: 154.6786193 | AH29: 25 | AI29: 2027-03-30 | AJ29: 126.5188331 | AK29: -0.0465081885 | AL29: =+Udbytte_fra_fond(AI29,$C$21,$C$22,+INDEX($AJ$4:AJ29,MAX(ROW(O29)-3-4/$C$21,1),1),AJ28*(1+L29),1) -> 0 | AM29: 0 | AN29: 0 | AO29: 153.239223 | AQ29: 126.5188331 | AR29: 18.1483095 | AS29: 144.6671426 | AT29: 7.160084928 | AU29: =+SUM($AL$5:AL29)*($B$13-$C$24)+(AR29-SUM($AN$5:AN29))*($B$13) -> 0.5621706597 | AV29: 7.722255587 | AX29: 136.944887 | AY29: 153.239223
A30: =+EDATE($F$4,36) -> 2023-12-30 | B30: =+(1+Options!C11)^(1/Options!$B5)-1 -> 0.04300365815 | C30: =+(1+Options!D11)^(1/Options!$B5)-1 -> 0.04116001627 | E30: 26 | F30: 2027-06-30 | G30: 0.03852715554 | H30: 0.0004996254369 | I30: 0.03800854007 | J30: 0.03852715554 | K30: 0.0008738539016 | L30: 0.03762042688 | N30: 26 | O30: 2027-06-30 | P30: 160.5577278 | Q30: 0.03800854007 | R30: =+Udbytte_lagerfond(O30,$B$21,$B$22,+INDEX(P$4:$P30,MAX(ROW(O30)-3-4/$C$21,1),1),P29*(1+I30),$B$14,$B$15,1) -> 0 | S30: 0 | T30: 0 | U30: 160.5577278 | W30: 160.5577278 | X30: 0 | Y30: 160.5577278 | Z30: 16.35058652 | AA30: =+IF(X30-SUM($T$5:T30)>0,(X30-SUM($T$5:T30))*$B$14,(X30-SUM($T$5:T30))*$B$15) -> 0 | AB30: =+udbytte_lager_skat_sats($B$25,$B$24,$B$14,$C$24,$B$26)*R30+AB29 -> 0 | AC30: 16.35058652 | AE30: 144.2071413 | AF30: 160.5577278 | AH30: 26 | AI30: 2027-06-30 | AJ30: 131.2785256 | AK30: 0.03762042688 | AL30: =+Udbytte_fra_fond(AI30,$C$21,$C$22,+INDEX($AJ$4:AJ30,MAX(ROW(O30)-3-4/$C$21,1),1),AJ29*(1+L30),1) -> 0 | AM30: 0 | AN30: 0 | AO30: 159.004148 | AQ30: 131.2785256 | AR30: 18.83105666 | AS30: 150.1095822 | AT30: 8.445201905 | AU30: =+SUM($AL$5:AL30)*($B$13-$C$24)+(AR30-SUM($AN$5:AN30))*($B$13) -> 0.7465123904 | AV30: 9.191714295 | AX30: 140.9178679 | AY30: 159.004148
A31: =+EDATE($F$4,60) -> 2025-12-30 | B31: =+(1+Options!C12)^(1/Options!$B6)-1 -> 0.04491879196 | C31: =+(1+Options!D12)^(1/Options!$B6)-1 -> 0.04227936605 | E31: 27 | F31: 2027-09-30 | G31: 0.1748953616 | H31: 0.0004996254369 | I31: 0.1743086471 | J31: 0.1748953616 | K31: 0.0008738539016 | L31: 0.1738695711 | N31: 27 | O31: 2027-09-30 | P31: 188.5443282 | Q31: 0.1743086471 | R31: =+Udbytte_lagerfond(O31,$B$21,$B$22,+INDEX(P$4:$P31,MAX(ROW(O31)-3-4/$C$21,1),1),P30*(1+I31),$B$14,$B$15,1) -> 0 | S31: 0 | T31: 0 | U31: 188.5443282 | W31: 188.5443282 | X31: 0 | Y31: 188.5443282 | Z31: 23.9069686 | AA31: =+IF(X31-SUM($T$5:T31)>0,(X31-SUM($T$5:T31))*$B$14,(X31-SUM($T$5:T31))*$B$15) -> 0 | AB31: =+udbytte_lager_skat_sats($B$25,$B$24,$B$14,$C$24,$B$26)*R31+AB30 -> 0 | AC31: 23.9069686 | AE31: 164.6373596 | AF31: 188.5443282 | AH31: 27 | AI31: 2027-09-30 | AJ31: 154.1038665 | AK31: 0.1738695711 | AL31: =+Udbytte_fra_fond(AI31,$C$21,$C$22,+INDEX($AJ$4:AJ31,MAX(ROW(O31)-3-4/$C$21,1),1),AJ30*(1+L31),1) -> 0 | AM31: 0 | AN31: 0 | AO31: 186.650131 | AQ31: 154.1038665 | AR31: 22.1052044 | AS31: 176.2090709 | AT31: 14.60804396 | AU31: =+SUM($AL$5:AL31)*($B$13-$C$24)+(AR31-SUM($AN$5:AN31))*($B$13) -> 1.630532281 | AV31: 16.23857624 | AX31: 159.9704947 | AY31: 186.650131
A32: =+EDATE($F$4,120) -> 2030-12-30 | B32: =+(1+Options!C13)^(1/Options!$B7)-1 -> 0.04625297777 | C32: =+(1+Options!D13)^(1/Options!$B7)-1 -> 0.04189116536 | E32: 28 | F32: 2027-12-30 | G32: 0.01365614873 | H32: 0.0004996254369 | I32: 0.01314995325 | J32: 0.01365614873 | K32: 0.0008738539016 | L32: 0.01277113473 | N32: 28 | O32: 2027-12-30 | P32: 191.0236773 | Q32: 0.01314995325 | R32: =+Udbytte_lagerfond(O32,$B$21,$B$22,+INDEX(P$4:$P32,MAX(ROW(O32)-3-4/$C$21,1),1),P31*(1+I32),$B$14,$B$15,1) -> 0 | S32: 0 | T32: 0 | U32: 191.0236773 | W32: 191.0236773 | X32: 0 | Y32: 191.0236773 | Z32: 24.57639286 | AA32: =+IF(X32-SUM($T$5:T32)>0,(X32-SUM($T$5:T32))*$B$14,(X32-SUM($T$5:T32))*$B$15) -> 0 | AB32: =+udbytte_lager_skat_sats($B$25,$B$24,$B$14,$C$24,$B$26)*R32+AB31 -> 0 | AC32: 24.57639286 | AE32: 166.4472844 | AF32: 191.0236773 | AH32: 28 | AI32: 2027-12-30 | AJ32: 149.0573649 | AK32: -0.0327474044 | AL32: =+Udbytte_fra_fond(AI32,$C$21,$C$22,+INDEX($AJ$4:AJ32,MAX(ROW(O32)-3-4/$C$21,1),1),AJ31*(1+L32),1) -> 7.014582878 | AM32: 1.893937377 | AN32: 5.120645501 | AO32: 189.033865 | AQ32: 149.0573649 | AR32: 26.50196183 | AS32: 175.5593267 | AT32: 13.24548851 | AU32: =+SUM($AL$5:AL32)*($B$13-$C$24)+(AR32-SUM($AN$5:AN32))*($B$13) -> 1.435082503 | AV32: 14.68057102 | AX32: 160.8787557 | AY32: 189.033865
E33: 29 | F33: 2028-03-30 | G33: 0.08159599341 | H33: 0.0004996254369 | I33: 0.0810558704 | J33: 0.08159599341 | K33: 0.0008738539016 | L33: 0.08065166174 | N33: 29 | O33: 2028-03-30 | P33: 206.5072677 | Q33: 0.0810558704 | R33: =+Udbytte_lagerfond(O33,$B$21,$B$22,+INDEX(P$4:$P33,MAX(ROW(O33)-3-4/$C$21,1),1),P32*(1+I33),$B$14,$B$15,1) -> 0 | S33: 0 | T33: 0 | U33: 206.5072677 | W33: 206.5072677 | X33: 0 | Y33: 206.5072677 | Z33: 28.75696228 | AA33: =+IF(X33-SUM($T$5:T33)>0,(X33-SUM($T$5:T33))*$B$14,(X33-SUM($T$5:T33))*$B$15) -> 0 | AB33: =+udbytte_lager_skat_sats($B$25,$B$24,$B$14,$C$24,$B$26)*R33+AB32 -> 0 | AC33: 28.75696228 | AE33: 177.7503054 | AF33: 206.5072677 | AH33: 29 | AI33: 2028-03-30 | AJ33: 161.079089 | AK33: 0.08065166174 | AL33: =+Udbytte_fra_fond(AI33,$C$21,$C$22,+INDEX($AJ$4:AJ33,MAX(ROW(O33)-3-4/$C$21,1),1),AJ32*(1+L33),1) -> 0 | AM33: 0 | AN33: 0 | AO33: 204.2797603 | AQ33: 161.079089 | AR33: 28.63938909 | AS33: 189.7184781 | AT33: 16.49135404 | AU33: =+SUM($AL$5:AL33)*($B$13-$C$24)+(AR33-SUM($AN$5:AN33))*($B$13) -> 2.012187863 | AV33: 18.5035419 | AX33: 171.2149362 | AY33: 204.2797603
A34: Afkast p.a. beregning - før skat | B34: =+B28 -> XACT C25 | C34: =+C28 -> Sparindex C25 | E34: 30 | F34: 2028-06-30 | G34: 0.01850503829 | H34: 0.0004996254369 | I34: 0.01799642138 | J34: 0.01850503829 | K34: 0.0008738539016 | L34: 0.01761579076 | N34: 30 | O34: 2028-06-30 | P34: 210.2236595 | Q34: 0.01799642138 | R34: =+Udbytte_lagerfond(O34,$B$21,$B$22,+INDEX(P$4:$P34,MAX(ROW(O34)-3-4/$C$21,1),1),P33*(1+I34),$B$14,$B$15,1) -> 0 | S34: 0 | T34: 0 | U34: 210.2236595 | W34: 210.2236595 | X34: 0 | Y34: 210.2236595 | Z34: 29.76038806 | AA34: =+IF(X34-SUM($T$5:T34)>0,(X34-SUM($T$5:T34))*$B$14,(X34-SUM($T$5:T34))*$B$15) -> 0 | AB34: =+udbytte_lager_skat_sats($B$25,$B$24,$B$14,$C$24,$B$26)*R34+AB33 -> 0 | AC34: 29.76038806 | AE34: 180.4632714 | AF34: 210.2236595 | AH34: 30 | AI34: 2028-06-30 | AJ34: 163.9166246 | AK34: 0.01761579076 | AL34: =+Udbytte_fra_fond(AI34,$C$21,$C$22,+INDEX($AJ$4:AJ34,MAX(ROW(O34)-3-4/$C$21,1),1),AJ33*(1+L34),1) -> 0 | AM34: 0 | AN34: 0 | AO34: 207.8783099 | AQ34: 163.9166246 | AR34: 29.14389458 | AS34: 193.0605191 | AT34: 17.25748863 | AU34: =+SUM($AL$5:AL34)*($B$13-$C$24)+(AR34-SUM($AN$5:AN34))*($B$13) -> 2.148404344 | AV34: 19.40589298 | AX34: 173.6546262 | AY34: 207.8783099
A35: =+A29 -> 2021-12-30 | B35: =+(1+Options!C4)^(1/Options!$B4)-1 -> 0.05788423154 | C35: =+(1+Options!D4)^(1/Options!$B4)-1 -> 0.05630293971 | E35: 31 | F35: 2028-09-30 | G35: 0.007587545366 | H35: 0.0004996254369 | I35: 0.007084380393 | J35: 0.007587545366 | K35: 0.0008738539016 | L35: 0.006707829801 | N35: 31 | O35: 2028-09-30 | P35: 211.7129639 | Q35: 0.007084380393 | R35: =+Udbytte_lagerfond(O35,$B$21,$B$22,+INDEX(P$4:$P35,MAX(ROW(O35)-3-4/$C$21,1),1),P34*(1+I35),$B$14,$B$15,1) -> 0 | S35: 0 | T35: 0 | U35: 211.7129639 | W35: 211.7129639 | X35: 0 | Y35: 211.7129639 | Z35: 30.16250024 | AA35: =+IF(X35-SUM($T$5:T35)>0,(X35-SUM($T$5:T35))*$B$14,(X35-SUM($T$5:T35))*$B$15) -> 0 | AB35: =+udbytte_lager_skat_sats($B$25,$B$24,$B$14,$C$24,$B$26)*R35+AB34 -> 0 | AC35: 30.16250024 | AE35: 181.5504636 | AF35: 211.7129639 | AH35: 31 | AI35: 2028-09-30 | AJ35: 165.0161494 | AK35: 0.006707829801 | AL35: =+Udbytte_fra_fond(AI35,$C$21,$C$22,+INDEX($AJ$4:AJ35,MAX(ROW(O35)-3-4/$C$21,1),1),AJ34*(1+L35),1) -> 0 | AM35: 0 | AN35: 0 | AO35: 209.2727222 | AQ35: 165.0161494 | AR35: 29.33938686 | AS35: 194.3555363 | AT35: 17.55436033 | AU35: =+SUM($AL$5:AL35)*($B$13-$C$24)+(AR35-SUM($AN$5:AN35))*($B$13) -> 2.201187261 | AV35: 19.7555476 | AX35: 174.5999887 | AY35: 209.2727222
A36: =+A30 -> 2023-12-30 | B36: =+(1+Options!C5)^(1/Options!$B5)-1 -> 0.05788423154 | C36: =+(1+Options!D5)^(1/Options!$B5)-1 -> 0.05630293971 | E36: 32 | F36: 2028-12-30 | G36: 0.06352805302 | H36: 0.0004996254369 | I36: 0.06299695271 | J36: 0.06352805302 | K36: 0.0008738539016 | L36: 0.06259949631 | N36: 32 | O36: 2028-12-30 | P36: 225.0502354 | Q36: 0.06299695271 | R36: =+Udbytte_lagerfond(O36,$B$21,$B$22,+INDEX(P$4:$P36,MAX(ROW(O36)-3-4/$C$21,1),1),P35*(1+I36),$B$14,$B$15,1) -> 0 | S36: 0 | T36: 0 | U36: 225.0502354 | W36: 225.0502354 | X36: 0 | Y36: 225.0502354 | Z36: 33.76356357 | AA36: =+IF(X36-SUM($T$5:T36)>0,(X36-SUM($T$5:T36))*$B$14,(X36-SUM($T$5:T36))*$B$15) -> 0 | AB36: =+udbytte_lager_skat_sats($B$25,$B$24,$B$14,$C$24,$B$26)*R36+AB35 -> 0 | AC36: 33.76356357 | AE36: 191.2866719 | AF36: 225.0502354 | AH36: 32 | AI36: 2028-12-30 | AJ36: 167.4594635 | AK36: 0.01480651523 | AL36: =+Udbytte_fra_fond(AI36,$C$21,$C$22,+INDEX($AJ$4:AJ36,MAX(ROW(O36)-3-4/$C$21,1),1),AJ35*(1+L36),1) -> 7.886613706 | AM36: 2.129385701 | AN36: 5.757228005 | AO36: 222.3730892 | AQ36: 167.4594635 | AR36: 35.53102895 | AS36: 202.9904925 | AT36: 18.21405515 | AU36: =+SUM($AL$5:AL36)*($B$13-$C$24)+(AR36-SUM($AN$5:AN36))*($B$13) -> 2.318479062 | AV36: 20.53253421 | AX36: 182.4579583 | AY36: 222.3730892
A37: 2025-12-30 | B37: =+(1+Options!C6)^(1/Options!$B6)-1 -> 0.05788423154 | C37: =+(1+Options!D6)^(1/Options!$B6)-1 -> 0.05630293971 | E37: 33 | F37: 2029-03-30 | G37: -0.02979567459 | H37: 0.0004996254369 | I37: -0.03028017128 | J37: -0.02979567459 | K37: 0.0008738539016 | L37: -0.0306427512 | N37: 33 | O37: 2029-03-30 | P37: 218.2356758 | Q37: -0.03028017128 | R37: =+Udbytte_lagerfond(O37,$B$21,$B$22,+INDEX(P$4:$P37,MAX(ROW(O37)-3-4/$C$21,1),1),P36*(1+I37),$B$14,$B$15,1) -> 0 | S37: 0 | T37: 0 | U37: 218.2356758 | W37: 218.2356758 | X37: 0 | Y37: 218.2356758 | Z37: 31.92363246 | AA37: =+IF(X37-SUM($T$5:T37)>0,(X37-SUM($T$5:T37))*$B$14,(X37-SUM($T$5:T37))*$B$15) -> 0 | AB37: =+udbytte_lager_skat_sats($B$25,$B$24,$B$14,$C$24,$B$26)*R37+AB36 -> 0 | AC37: 31.92363246 | AE37: 186.3120433 | AF37: 218.2356758 | AH37: 33 | AI37: 2029-03-30 | AJ37: 162.3280448 | AK37: -0.0306427512 | AL37: =+Udbytte_fra_fond(AI37,$C$21,$C$22,+INDEX($AJ$4:AJ37,MAX(ROW(O37)-3-4/$C$21,1),1),AJ36*(1+L37),1) -> 0 | AM37: 0 | AN37: 0 | AO37: 215.5589659 | AQ37: 162.3280448 | AR37: 34.44226047 | AS37: 196.7703053 | AT37: 16.82857211 | AU37: =+SUM($AL$5:AL37)*($B$13-$C$24)+(AR37-SUM($AN$5:AN37))*($B$13) -> 2.024511573 | AV37: 18.85308368 | AX37: 177.9172216 | AY37: 215.5589659
A38: 2030-12-30 | B38: =+(1+Options!C7)^(1/Options!$B7)-1 -> 0.05788423154 | C38: =+(1+Options!D7)^(1/Options!$B7)-1 -> 0.05630293971 | E38: 34 | F38: 2029-06-30 | G38: -0.002374031827 | H38: 0.0004996254369 | I38: -0.002872222229 | J38: -0.002374031827 | K38: 0.0008738539016 | L38: -0.003245050029 | N38: 34 | O38: 2029-06-30 | P38: 217.6088544 | Q38: -0.002872222229 | R38: =+Udbytte_lagerfond(O38,$B$21,$B$22,+INDEX(P$4:$P38,MAX(ROW(O38)-3-4/$C$21,1),1),P37*(1+I38),$B$14,$B$15,1) -> 0 | S38: 0 | T38: 0 | U38: 217.6088544 | W38: 217.6088544 | X38: 0 | Y38: 217.6088544 | Z38: 31.75439069 | AA38: =+IF(X38-SUM($T$5:T38)>0,(X38-SUM($T$5:T38))*$B$14,(X38-SUM($T$5:T38))*$B$15) -> 0 | AB38: =+udbytte_lager_skat_sats($B$25,$B$24,$B$14,$C$24,$B$26)*R38+AB37 -> 0 | AC38: 31.75439069 | AE38: 185.8544637 | AF38: 217.6088544 | AH38: 34 | AI38: 2029-06-30 | AJ38: 161.8012822 | AK38: -0.003245050029 | AL38: =+Udbytte_fra_fond(AI38,$C$21,$C$22,+INDEX($AJ$4:AJ38,MAX(ROW(O38)-3-4/$C$21,1),1),AJ37*(1+L38),1) -> 0 | AM38: 0 | AN38: 0 | AO38: 214.8594663 | AQ38: 161.8012822 | AR38: 34.33049361 | AS38: 196.1317758 | AT38: 16.6863462 | AU38: =+SUM($AL$5:AL38)*($B$13-$C$24)+(AR38-SUM($AN$5:AN38))*($B$13) -> 1.994334521 | AV38: 18.68068072 | AX38: 177.4510951 | AY38: 214.8594663
E39: 35 | F39: 2029-09-30 | G39: 0.1146326363 | H39: 0.0004996254369 | I39: 0.1140760156 | J39: 0.1146326363 | K39: 0.0008738539016 | L39: 0.1136594607 | N39: 35 | O39: 2029-09-30 | P39: 242.4328055 | Q39: 0.1140760156 | R39: =+Udbytte_lagerfond(O39,$B$21,$B$22,+INDEX(P$4:$P39,MAX(ROW(O39)-3-4/$C$21,1),1),P38*(1+I39),$B$14,$B$15,1) -> 0 | S39: 0 | T39: 0 | U39: 242.4328055 | W39: 242.4328055 | X39: 0 | Y39: 242.4328055 | Z39: 38.45685748 | AA39: =+IF(X39-SUM($T$5:T39)>0,(X39-SUM($T$5:T39))*$B$14,(X39-SUM($T$5:T39))*$B$15) -> 0 | AB39: =+udbytte_lager_skat_sats($B$25,$B$24,$B$14,$C$24,$B$26)*R39+AB38 -> 0 | AC39: 38.45685748 | AE39: 203.975948 | AF39: 242.4328055 | AH39: 35 | AI39: 2029-09-30 | AJ39: 180.1915287 | AK39: 0.1136594607 | AL39: =+Udbytte_fra_fond(AI39,$C$21,$C$22,+INDEX($AJ$4:AJ39,MAX(ROW(O39)-3-4/$C$21,1),1),AJ38*(1+L39),1) -> 0 | AM39: 0 | AN39: 0 | AO39: 239.2802774 | AQ39: 180.1915287 | AR39: 38.232479 | AS39: 218.4240077 | AT39: 21.65171274 | AU39: =+SUM($AL$5:AL39)*($B$13-$C$24)+(AR39-SUM($AN$5:AN39))*($B$13) -> 3.047870576 | AV39: 24.69958332 | AX39: 193.7244244 | AY39: 239.2802774
A40: Afkast akkumuleret overtid - efter skat | B40: =+B34 -> XACT C25 | C40: =+C34 -> Sparindex C25 | E40: 36 | F40: 2029-12-30 | G40: -0.04877313785 | H40: 0.0004996254369 | I40: -0.04924815766 | J40: -0.04877313785 | K40: 0.0008738539016 | L40: -0.04960364541 | N40: 36 | O40: 2029-12-30 | P40: 230.4934365 | Q40: -0.04924815766 | R40: =+Udbytte_lagerfond(O40,$B$21,$B$22,+INDEX(P$4:$P40,MAX(ROW(O40)-3-4/$C$21,1),1),P39*(1+I40),$B$14,$B$15,1) -> 0 | S40: 0 | T40: 0 | U40: 230.4934365 | W40: 230.4934365 | X40: 0 | Y40: 230.4934365 | Z40: 35.23322784 | AA40: =+IF(X40-SUM($T$5:T40)>0,(X40-SUM($T$5:T40))*$B$14,(X40-SUM($T$5:T40))*$B$15) -> 0 | AB40: =+udbytte_lager_skat_sats($B$25,$B$24,$B$14,$C$24,$B$26)*R40+AB39 -> 0 | AC40: 35.23322784 | AE40: 195.2602086 | AF40: 230.4934365 | AH40: 36 | AI40: 2029-12-30 | AJ40: 170.1151994 | AK40: -0.05592010518 | AL40: =+Udbytte_fra_fond(AI40,$C$21,$C$22,+INDEX($AJ$4:AJ40,MAX(ROW(O40)-3-4/$C$21,1),1),AJ39*(1+L40),1) -> 1.138172542 | AM40: 0.3073065862 | AN40: 0.8308659553 | AO40: 227.4111033 | AQ40: 170.1151994 | AR40: 36.9253807 | AS40: 207.0405802 | AT40: 18.93110385 | AU40: =+SUM($AL$5:AL40)*($B$13-$C$24)+(AR40-SUM($AN$5:AN40))*($B$13) -> 2.470620229 | AV40: 21.40172408 | AX40: 185.6388561 | AY40: 227.4111033
A41: =+EDATE($F$4,12) -> 2021-12-30 | B41: =+Options!C10 -> 0.04036620862 | C41: =+Options!D10 -> 0.03921686763 | E41: 37 | F41: 2030-03-30 | G41: 0.04654463678 | H41: 0.0004996254369 | I41: 0.04602201757 | J41: 0.04654463678 | K41: 0.0008738539016 | L41: 0.04563090813 | N41: 37 | O41: 2030-03-30 | P41: 241.1012094 | Q41: 0.04602201757 | R41: =+Udbytte_lagerfond(O41,$B$21,$B$22,+INDEX(P$4:$P41,MAX(ROW(O41)-3-4/$C$21,1),1),P40*(1+I41),$B$14,$B$15,1) -> 0 | S41: 0 | T41: 0 | U41: 241.1012094 | W41: 241.1012094 | X41: 0 | Y41: 241.1012094 | Z41: 38.09732655 | AA41: =+IF(X41-SUM($T$5:T41)>0,(X41-SUM($T$5:T41))*$B$14,(X41-SUM($T$5:T41))*$B$15) -> 0 | AB41: =+udbytte_lager_skat_sats($B$25,$B$24,$B$14,$C$24,$B$26)*R41+AB40 -> 0 | AC41: 38.09732655 | AE41: 203.0038829 | AF41: 241.1012094 | AH41: 37 | AI41: 2030-03-30 | AJ41: 177.8777105 | AK41: 0.04563090813 | AL41: =+Udbytte_fra_fond(AI41,$C$21,$C$22,+INDEX($AJ$4:AJ41,MAX(ROW(O41)-3-4/$C$21,1),1),AJ40*(1+L41),1) -> 0 | AM41: 0 | AN41: 0 | AO41: 237.7880785 | AQ41: 177.8777105 | AR41: 38.61031936 | AS41: 216.4880298 | AT41: 21.02698183 | AU41: =+SUM($AL$5:AL41)*($B$13-$C$24)+(AR41-SUM($AN$5:AN41))*($B$13) -> 2.925553666 | AV41: 23.9525355 | AX41: 192.5354943 | AY41: 237.7880785
A42: =+EDATE($F$4,36) -> 2023-12-30 | B42: =+Options!C11 -> 0.1346384456 | C42: =+Options!D11 -> 0.1286322207 | E42: 38 | F42: 2030-06-30 | G42: 0.04432338128 | H42: 0.0004996254369 | I42: 0.04380187132 | J42: 0.04432338128 | K42: 0.0008738539016 | L42: 0.04341159199 | N42: 38 | O42: 2030-06-30 | P42: 251.6618936 | Q42: 0.04380187132 | R42: =+Udbytte_lagerfond(O42,$B$21,$B$22,+INDEX(P$4:$P42,MAX(ROW(O42)-3-4/$C$21,1),1),P41*(1+I42),$B$14,$B$15,1) -> 0 | S42: 0 | T42: 0 | U42: 251.6618936 | W42: 251.6618936 | X42: 0 | Y42: 251.6618936 | Z42: 40.94871127 | AA42: =+IF(X42-SUM($T$5:T42)>0,(X42-SUM($T$5:T42))*$B$14,(X42-SUM($T$5:T42))*$B$15) -> 0 | AB42: =+udbytte_lager_skat_sats($B$25,$B$24,$B$14,$C$24,$B$26)*R42+AB41 -> 0 | AC42: 40.94871127 | AE42: 210.7131823 | AF42: 251.6618936 | AH42: 38 | AI42: 2030-06-30 | AJ42: 185.5996651 | AK42: 0.04341159199 | AL42: =+Udbytte_fra_fond(AI42,$C$21,$C$22,+INDEX($AJ$4:AJ42,MAX(ROW(O42)-3-4/$C$21,1),1),AJ41*(1+L42),1) -> 0 | AM42: 0 | AN42: 0 | AO42: 248.1108375 | AQ42: 185.5996651 | AR42: 40.28645479 | AS42: 225.8861199 | AT42: 23.11190957 | AU42: =+SUM($AL$5:AL42)*($B$13-$C$24)+(AR42-SUM($AN$5:AN42))*($B$13) -> 3.378110232 | AV42: 26.4900198 | AX42: 199.3961001 | AY42: 248.1108375
A43: =+EDATE($F$4,60) -> 2025-12-30 | B43: =+Options!C12 -> 0.2458477702 | C43: =+Options!D12 -> 0.2301837115 | E43: 39 | F43: 2030-09-30 | G43: -0.06832917693 | H43: 0.0004996254369 | I43: -0.06879443092 | J43: -0.06832917693 | K43: 0.0008738539016 | L43: -0.06914261029 | N43: 39 | O43: 2030-09-30 | P43: 234.3489568 | Q43: -0.06879443092 | R43: =+Udbytte_lagerfond(O43,$B$21,$B$22,+INDEX(P$4:$P43,MAX(ROW(O43)-3-4/$C$21,1),1),P42*(1+I43),$B$14,$B$15,1) -> 0 | S43: 0 | T43: 0 | U43: 234.3489568 | W43: 234.3489568 | X43: 0 | Y43: 234.3489568 | Z43: 36.27421834 | AA43: =+IF(X43-SUM($T$5:T43)>0,(X43-SUM($T$5:T43))*$B$14,(X43-SUM($T$5:T43))*$B$15) -> 0 | AB43: =+udbytte_lager_skat_sats($B$25,$B$24,$B$14,$C$24,$B$26)*R43+AB42 -> 0 | AC43: 36.27421834 | AE43: 198.0747385 | AF43: 234.3489568 | AH43: 39 | AI43: 2030-09-30 | AJ43: 172.7668198 | AK43: -0.06914261029 | AL43: =+Udbytte_fra_fond(AI43,$C$21,$C$22,+INDEX($AJ$4:AJ43,MAX(ROW(O43)-3-4/$C$21,1),1),AJ42*(1+L43),1) -> 0 | AM43: 0 | AN43: 0 | AO43: 230.9558066 | AQ43: 172.7668198 | AR43: 37.50094415 | AS43: 210.2677639 | AT43: 19.64704134 | AU43: =+SUM($AL$5:AL43)*($B$13-$C$24)+(AR43-SUM($AN$5:AN43))*($B$13) -> 2.626022358 | AV43: 22.27306369 | AX43: 187.9947002 | AY43: 230.9558066
A44: =+EDATE($F$4,120) -> 2030-12-30 | B44: =+Options!C13 -> 0.5720800955 | C44: =+Options!D13 -> 0.5077217903 | E44: 40 | F44: 2030-12-30 | G44: -0.07856790661 | H44: 0.0004996254369 | I44: -0.07902804762 | J44: -0.07856790661 | K44: 0.0008738539016 | L44: -0.07937240063 | N44: 40 | O44: 2030-12-30 | P44: 215.8288163 | Q44: -0.07902804762 | R44: =+Udbytte_lagerfond(O44,$B$21,$B$22,+INDEX(P$4:$P44,MAX(ROW(O44)-3-4/$C$21,1),1),P43*(1+I44),$B$14,$B$15,1) -> 0 | S44: 0 | T44: 0 | U44: 215.8288163 | W44: 215.8288163 | X44: 0 | Y44: 215.8288163 | Z44: 31.2737804 | AA44: =+IF(X44-SUM($T$5:T44)>0,(X44-SUM($T$5:T44))*$B$14,(X44-SUM($T$5:T44))*$B$15) -> 0 | AB44: =+udbytte_lager_skat_sats($B$25,$B$24,$B$14,$C$24,$B$26)*R44+AB43 -> 0 | AC44: 31.2737804 | AE44: 184.5550359 | AF44: 215.8288163 | AH44: 40 | AI44: 2030-12-30 | AJ44: 159.0539025 | AK44: -0.07937240063 | AL44: =+Udbytte_fra_fond(AI44,$C$21,$C$22,+INDEX($AJ$4:AJ44,MAX(ROW(O44)-3-4/$C$21,1),1),AJ43*(1+L44),1) -> 0 | AM44: 0 | AN44: 0 | AO44: 212.6242898 | AQ44: 159.0539025 | AR44: 34.52440418 | AS44: 193.5783067 | AT44: 15.94455368 | AU44: =+SUM($AL$5:AL44)*($B$13-$C$24)+(AR44-SUM($AN$5:AN44))*($B$13) -> 1.822356569 | AV44: 17.76691025 | AX44: 175.8113965 | AY44: 212.6242898
A46: Afkast akkumuleret overtid - før skat | B46: =+B40 -> XACT C25 | C46: =+C40 -> Sparindex C25
A47: =+A41 -> 2021-12-30 | B47: =+Options!C4 -> 0.05788423154 | C47: =+Options!D4 -> 0.05630293971
A48: =+A42 -> 2023-12-30 | B48: =+Options!C5 -> 0.1838983934 | C48: =+Options!D5 -> 0.1785973637
A49: 2025-12-30 | B49: =+Options!C6 -> 0.3251275172 | C49: =+Options!D6 -> 0.3152478973
A50: 2030-12-30 | B50: =+Options!C7 -> 0.7559629367 | C50: =+Options!D7 -> 0.7298770313

Sheet Options
M2: =+COLUMN() -> 13 | N2: 14 | O2: 15 | P2: 16
A3: Før Skat - Afkast | B3: År | C3: =+Fonds_tax!B28 -> XACT C25 | D3: =+Fonds_tax!C28 -> Sparindex C25 | M3: Samlet oversigt afkast - EFTER SKAT
A4: =+Fonds_tax!A29 -> 2021-12-30 | B4: =+(A4-Fonds_tax!$F$4)/365 -> 1 | C4: =+((((1+Fonds_tax!$B$3)^Options!B4-1)*Fonds_tax!$B$20)+1)/((1+Fonds_tax!$B$23))^Options!B4-1 -> 0.05788423154 | D4: =+((((1+Fonds_tax!$B$3)^Options!B4-1)*Fonds_tax!$C$20)+1)/((1+Fonds_tax!$C$23))^Options!B4-1 -> 0.05630293971 | M4: Q/Q | N4: =+Fonds_tax!$F$2 -> Dato | O4: =+Fonds_tax!$G$2 -> XACT C25 | P4: =+Fonds_tax!$J$2 -> Sparindex C25 | Q4: Forskel
A5: =+Fonds_tax!A30 -> 2023-12-30 | B5: =+(A5-Fonds_tax!$F$4)/365 -> 3 | C5: =+((((1+Fonds_tax!$B$3)^Options!B5-1)*Fonds_tax!$B$20)+1)/((1+Fonds_tax!$B$23))^Options!B5-1 -> 0.1838983934 | D5: =+((((1+Fonds_tax!$B$3)^Options!B5-1)*Fonds_tax!$C$20)+1)/((1+Fonds_tax!$C$23))^Options!B5-1 -> 0.1785973637 | M5: =+Fonds_tax!E4 -> 0 | N5: =+Fonds_tax!F4 -> 2020-12-30 | O5: 0 | P5: 0 | Q5: =+P5-O5 -> 0
A6: =+Fonds_tax!A31 -> 2025-12-30 | B6: =+(A6-Fonds_tax!$F$4)/365 -> 5.002739726 | C6: =+((((1+Fonds_tax!$B$3)^Options!B6-1)*Fonds_tax!$B$20)+1)/((1+Fonds_tax!$B$23))^Options!B6-1 -> 0.3251275172 | D6: =+((((1+Fonds_tax!$B$3)^Options!B6-1)*Fonds_tax!$C$20)+1)/((1+Fonds_tax!$C$23))^Options!B6-1 -> 0.3152478973 | M6: =+Fonds_tax!E5 -> 1 | N6: =+Fonds_tax!F5 -> 2021-03-30 | O6: =+Fonds_tax!AE5/Fonds_tax!$AE$4-1 -> -0.01485220244 | P6: =+Fonds_tax!AX5/Fonds_tax!$AX$4-1 -> -0.01511959743 | Q6: =+P6-O6 -> -0.0002673949982
A7: =+Fonds_tax!A32 -> 2030-12-30 | B7: =+(A7-Fonds_tax!$F$4)/365 -> 10.00547945 | C7: =+((((1+Fonds_tax!$B$3)^Options!B7-1)*Fonds_tax!$B$20)+1)/((1+Fonds_tax!$B$23))^Options!B7-1 -> 0.7559629367 | D7: =+((((1+Fonds_tax!$B$3)^Options!B7-1)*Fonds_tax!$C$20)+1)/((1+Fonds_tax!$C$23))^Options!B7-1 -> 0.7298770313 | M7: =+Fonds_tax!E6 -> 2 | N7: =+Fonds_tax!F6 -> 2021-06-30 | O7: =+Fonds_tax!AE6/Fonds_tax!$AE$4-1 -> 0.07920277515 | P7: =+Fonds_tax!AX6/Fonds_tax!$AX$4-1 -> 0.07859776364 | Q7: -0.0006050115053
M8: =+Fonds_tax!E7 -> 3 | N8: =+Fonds_tax!F7 -> 2021-09-30 | O8: =+Fonds_tax!AE7/Fonds_tax!$AE$4-1 -> -0.05561889482 | P8: =+Fonds_tax!AX7/Fonds_tax!$AX$4-1 -> -0.0563750688 | Q8: -0.0007561739789
A9: Efter Skat - Afkast | B9: Code line | C9: =+C3 -> XACT C25 | D9: =+D3 -> Sparindex C25 | M9: =+Fonds_tax!E8 -> 4 | N9: =+Fonds_tax!F8 -> 2021-12-30 | O9: =+Fonds_tax!AE8/Fonds_tax!$AE$4-1 -> -0.1353520093 | P9: =+Fonds_tax!AX8/Fonds_tax!$AX$4-1 -> -0.1362408703 | Q9: -0.0008888609726
A10: =+Fonds_tax!A35 -> 2021-12-30 | B10: =+MATCH(A10,$N$5:$N$45) -> 5 | C10: 0.04036620862 | D10: 0.03921686763 | M10: =+Fonds_tax!E9 -> 5 | N10: =+Fonds_tax!F9 -> 2022-03-30 | O10: =+Fonds_tax!AE9/Fonds_tax!$AE$4-1 -> -0.1007016269 | P10: =+Fonds_tax!AX9/Fonds_tax!$AX$4-1 -> -0.1018772262 | Q10: -0.001175599303
A11: =+Fonds_tax!A36 -> 2023-12-30 | B11: =+MATCH(A11,$N$5:$N$45) -> 13 | C11: 0.1346384456 | D11: 0.1286322207 | M11: =+Fonds_tax!E10 -> 6 | N11: =+Fonds_tax!F10 -> 2022-06-30 | O11: =+Fonds_tax!AE10/Fonds_tax!$AE$4-1 -> -0.08959925291 | P11: =+Fonds_tax!AX10/Fonds_tax!$AX$4-1 -> -0.09103459232 | Q11: -0.001435339405
A12: =+Fonds_tax!A37 -> 2025-12-30 | B12: 21 | C12: 0.2458477702 | D12: 0.2301837115 | M12: =+Fonds_tax!E11 -> 7 | N12: =+Fonds_tax!F11 -> 2022-09-30 | O12: =+Fonds_tax!AE11/Fonds_tax!$AE$4-1 -> -0.106205465 | P12: =+Fonds_tax!AX11/Fonds_tax!$AX$4-1 -> -0.1078362998 | Q12: -0.001630834759
A13: =+Fonds_tax!A38 -> 2030-12-30 | B13: 41 | C13: 0.5720800955 | D13: 0.5077217903 | M13: =+Fonds_tax!E12 -> 8 | N13: =+Fonds_tax!F12 -> 2022-12-30 | O13: =+Fonds_tax!AE12/Fonds_tax!$AE$4-1 -> -0.05032158302 | P13: =+Fonds_tax!AX12/Fonds_tax!$AX$4-1 -> -0.05235198791 | Q13: -0.002030404891
A14: ID | B14: 500 | M14: =+Fonds_tax!E13 -> 9 | N14: =+Fonds_tax!F13 -> 2023-03-30 | O14: =+Fonds_tax!AE13/Fonds_tax!$AE$4-1 -> 0.01548244399 | P14: =+Fonds_tax!AX13/Fonds_tax!$AX$4-1 -> 0.01232247724 | Q14: -0.003159966757
M15: =+Fonds_tax!E14 -> 10 | N15: =+Fonds_tax!F14 -> 2023-06-30 | O15: =+Fonds_tax!AE14/Fonds_tax!$AE$4-1 -> 0.08256646114 | P15: =+Fonds_tax!AX14/Fonds_tax!$AX$4-1 -> 0.0782109101 | Q15: -0.004355551032
M16: =+Fonds_tax!E15 -> 11 | N16: =+Fonds_tax!F15 -> 2023-09-30 | O16: =+Fonds_tax!AE15/Fonds_tax!$AE$4-1 -> 0.135762849 | P16: =+Fonds_tax!AX15/Fonds_tax!$AX$4-1 -> 0.1303580354 | Q16: -0.005404813554
M17: =+Fonds_tax!E16 -> 12 | N17: =+Fonds_tax!F16 -> 2023-12-30 | O17: =+Fonds_tax!AE16/Fonds_tax!$AE$4-1 -> 0.1775321106 | P17: =+Fonds_tax!AX16/Fonds_tax!$AX$4-1 -> 0.1693675022 | Q17: -0.008164608365
M18: =+Fonds_tax!E17 -> 13 | N18: =+Fonds_tax!F17 -> 2024-03-30 | O18: =+Fonds_tax!AE17/Fonds_tax!$AE$4-1 -> 0.2501569178 | P18: =+Fonds_tax!AX17/Fonds_tax!$AX$4-1 -> 0.2390324416 | Q18: -0.01112447626
M19: =+Fonds_tax!E18 -> 14 | N19: =+Fonds_tax!F18 -> 2024-06-30 | O19: =+Fonds_tax!AE18/Fonds_tax!$AE$4-1 -> 0.1855732818 | P19: =+Fonds_tax!AX18/Fonds_tax!$AX$4-1 -> 0.1764600996 | Q19: -0.009113182183
M20: =+Fonds_tax!E19 -> 15 | N20: =+Fonds_tax!F19 -> 2024-09-30 | O20: =+Fonds_tax!AE19/Fonds_tax!$AE$4-1 -> 0.1987380182 | P20: =+Fonds_tax!AX19/Fonds_tax!$AX$4-1 -> 0.1888083146 | Q20: -0.009929703572
M21: =+Fonds_tax!E20 -> 16 | N21: =+Fonds_tax!F20 -> 2024-12-30 | O21: =+Fonds_tax!AE20/Fonds_tax!$AE$4-1 -> 0.2548938885 | P21: =+Fonds_tax!AX20/Fonds_tax!$AX$4-1 -> 0.2407704131 | Q21: -0.01412347538
M22: =+Fonds_tax!E21 -> 17 | N22: =+Fonds_tax!F21 -> 2025-03-30 | O22: =+Fonds_tax!AE21/Fonds_tax!$AE$4-1 -> 0.2671707842 | P22: =+Fonds_tax!AX21/Fonds_tax!$AX$4-1 -> 0.252142882 | Q22: -0.01502790222
M23: =+Fonds_tax!E22 -> 18 | N23: =+Fonds_tax!F22 -> 2025-06-30 | O23: =+Fonds_tax!AE22/Fonds_tax!$AE$4-1 -> 0.4157417998 | P23: =+Fonds_tax!AX22/Fonds_tax!$AX$4-1 -> 0.393617183 | Q23: -0.02212461682
M24: =+Fonds_tax!E23 -> 19 | N24: =+Fonds_tax!F23 -> 2025-09-30 | O24: =+Fonds_tax!AE23/Fonds_tax!$AE$4-1 -> 0.3493714798 | P24: =+Fonds_tax!AX23/Fonds_tax!$AX$4-1 -> 0.3298728098 | Q24: -0.01949866996
M25: =+Fonds_tax!E24 -> 20 | N25: =+Fonds_tax!F24 -> 2025-12-30 | O25: =+Fonds_tax!AE24/Fonds_tax!$AE$4-1 -> 0.3171141059 | P25: =+Fonds_tax!AX24/Fonds_tax!$AX$4-1 -> 0.2970702075 | Q25: -0.0200438984
M26: =+Fonds_tax!E25 -> 21 | N26: =+Fonds_tax!F25 -> 2026-03-30 | O26: =+Fonds_tax!AE25/Fonds_tax!$AE$4-1 -> 0.3894436189 | P26: =+Fonds_tax!AX25/Fonds_tax!$AX$4-1 -> 0.3652623493 | Q26: -0.02418126955
M27: =+Fonds_tax!E26 -> 22 | N27: =+Fonds_tax!F26 -> 2026-06-30 | O27: =+Fonds_tax!AE26/Fonds_tax!$AE$4-1 -> 0.3942063122 | P27: =+Fonds_tax!AX26/Fonds_tax!$AX$4-1 -> 0.3693785996 | Q27: -0.02482771259
M28: =+Fonds_tax!E27 -> 23 | N28: =+Fonds_tax!F27 -> 2026-09-30 | O28: =+Fonds_tax!AE27/Fonds_tax!$AE$4-1 -> 0.4972055297 | P28: =+Fonds_tax!AX27/Fonds_tax!$AX$4-1 -> 0.4665434805 | Q28: -0.03066204923
M29: =+Fonds_tax!E28 -> 24 | N29: =+Fonds_tax!F28 -> 2026-12-30 | O29: =+Fonds_tax!AE28/Fonds_tax!$AE$4-1 -> 0.4537875427 | P29: =+Fonds_tax!AX28/Fonds_tax!$AX$4-1 -> 0.4209604912 | Q29: -0.03282705155
M30: =+Fonds_tax!E29 -> 25 | N30: =+Fonds_tax!F29 -> 2027-03-30 | O30: =+Fonds_tax!AE29/Fonds_tax!$AE$4-1 -> 0.3991539212 | P30: =+Fonds_tax!AX29/Fonds_tax!$AX$4-1 -> 0.3694488698 | Q30: -0.02970505135
M31: =+Fonds_tax!E30 -> 26 | N31: =+Fonds_tax!F30 -> 2027-06-30 | O31: =+Fonds_tax!AE30/Fonds_tax!$AE$4-1 -> 0.4420714132 | P31: =+Fonds_tax!AX30/Fonds_tax!$AX$4-1 -> 0.4091786793 | Q31: -0.03289273389
M32: =+Fonds_tax!E31 -> 27 | N32: =+Fonds_tax!F31 -> 2027-09-30 | O32: =+Fonds_tax!AE31/Fonds_tax!$AE$4-1 -> 0.6463735956 | P32: =+Fonds_tax!AX31/Fonds_tax!$AX$4-1 -> 0.5997049467 | Q32: -0.04666864891
M33: =+Fonds_tax!E32 -> 28 | N33: =+Fonds_tax!F32 -> 2027-12-30 | O33: =+Fonds_tax!AE32/Fonds_tax!$AE$4-1 -> 0.664472844 | P33: =+Fonds_tax!AX32/Fonds_tax!$AX$4-1 -> 0.6087875568 | Q33: -0.05568528718
M34: =+Fonds_tax!E33 -> 29 | N34: =+Fonds_tax!F33 -> 2028-03-30 | O34: =+Fonds_tax!AE33/Fonds_tax!$AE$4-1 -> 0.7775030541 | P34: =+Fonds_tax!AX33/Fonds_tax!$AX$4-1 -> 0.7121493623 | Q34: -0.06535369184
M35: =+Fonds_tax!E34 -> 30 | N35: =+Fonds_tax!F34 -> 2028-06-30 | O35: =+Fonds_tax!AE34/Fonds_tax!$AE$4-1 -> 0.8046327143 | P35: =+Fonds_tax!AX34/Fonds_tax!$AX$4-1 -> 0.7365462617 | Q35: -0.06808645263
M36: =+Fonds_tax!E35 -> 31 | N36: =+Fonds_tax!F35 -> 2028-09-30 | O36: =+Fonds_tax!AE35/Fonds_tax!$AE$4-1 -> 0.8155046362 | P36: =+Fonds_tax!AX35/Fonds_tax!$AX$4-1 -> 0.7459998866 | Q36: -0.06950474969
M37: =+Fonds_tax!E36 -> 32 | N37: =+Fonds_tax!F36 -> 2028-12-30 | O37: =+Fonds_tax!AE36/Fonds_tax!$AE$4-1 -> 0.9128667187 | P37: =+Fonds_tax!AX36/Fonds_tax!$AX$4-1 -> 0.8245795825 | Q37: -0.0882871362
M38: =+Fonds_tax!E37 -> 33 | N38: =+Fonds_tax!F37 -> 2029-03-30 | O38: =+Fonds_tax!AE37/Fonds_tax!$AE$4-1 -> 0.8631204331 | P38: =+Fonds_tax!AX37/Fonds_tax!$AX$4-1 -> 0.7791722163 | Q38: -0.08394821681
M39: =+Fonds_tax!E38 -> 34 | N39: =+Fonds_tax!F38 -> 2029-06-30 | O39: =+Fonds_tax!AE38/Fonds_tax!$AE$4-1 -> 0.8585446372 | P39: =+Fonds_tax!AX38/Fonds_tax!$AX$4-1 -> 0.774510951 | Q39: -0.08403368613
M40: =+Fonds_tax!E39 -> 35 | N40: =+Fonds_tax!F39 -> 2029-09-30 | O40: =+Fonds_tax!AE39/Fonds_tax!$AE$4-1 -> 1.03975948 | P40: =+Fonds_tax!AX39/Fonds_tax!$AX$4-1 -> 0.9372442436 | Q40: -0.1025152364
M41: =+Fonds_tax!E40 -> 36 | N41: =+Fonds_tax!F40 -> 2029-12-30 | O41: =+Fonds_tax!AE40/Fonds_tax!$AE$4-1 -> 0.9526020861 | P41: =+Fonds_tax!AX40/Fonds_tax!$AX$4-1 -> 0.8563885607 | Q41: -0.09621352539
F42: =+Fonds_tax!G5 -> -0.01985602247 | M42: =+Fonds_tax!E41 -> 37 | N42: =+Fonds_tax!F41 -> 2030-03-30 | O42: =+Fonds_tax!AE41/Fonds_tax!$AE$4-1 -> 1.030038829 | P42: =+Fonds_tax!AX41/Fonds_tax!$AX$4-1 -> 0.9253549435 | Q42: -0.1046838854
M43: =+Fonds_tax!E42 -> 38 | N43: =+Fonds_tax!F42 -> 2030-06-30 | O43: =+Fonds_tax!AE42/Fonds_tax!$AE$4-1 -> 1.107131823 | P43: =+Fonds_tax!AX42/Fonds_tax!$AX$4-1 -> 0.9939610006 | Q43: -0.1131708225
M44: =+Fonds_tax!E43 -> 39 | N44: =+Fonds_tax!F43 -> 2030-09-30 | O44: =+Fonds_tax!AE43/Fonds_tax!$AE$4-1 -> 0.9807473849 | P44: =+Fonds_tax!AX43/Fonds_tax!$AX$4-1 -> 0.8799470022 | Q44: -0.1008003827
M45: =+Fonds_tax!E44 -> 40 | N45: =+Fonds_tax!F44 -> 2030-12-30 | O45: =+Fonds_tax!AE44/Fonds_tax!$AE$4-1 -> 0.8455503591 | P45: =+Fonds_tax!AX44/Fonds_tax!$AX$4-1 -> 0.7581139646 | Q45: -0.08743639445
